{"text_format":"1","workbook":"xlsx","n_sheets":2,"sheets":["Championnat par équipe","Données"],"not_rendered":{"charts":0,"images":2,"macros":1,"external_links":0,"defined_names":10,"comments":0,"pivot_tables":0},"unopened":[],"bounds":{"document_bytes":16777216,"sheet_cells":100000,"rows_first":2000,"rows_last":500,"rows_between":2000,"halvings":0,"cell_chars":16384,"cell_head_chars":4096},"cells_cut":0,"cells_raw":0,"read":"whole","date_system":"1900"}

{"sheet":"Championnat par équipe","index":0,"n_rows":36,"n_cols":25,"rows_kept":36,"cut":false,"hidden":false,"merged":[[34,4,34,14],[29,2,30,4],[29,9,30,11],[35,4,35,14],[32,4,32,14],[33,4,33,14],[25,9,25,10],[23,9,23,10],[24,9,24,10],[28,2,28,4],[23,2,23,3],[25,2,25,3],[28,9,28,11],[24,2,24,3],[12,7,12,8],[16,9,16,10],[7,7,7,8],[14,0,14,15],[12,10,12,13],[13,10,13,13],[10,14,10,15],[11,14,11,15],[10,10,10,13],[7,2,7,6],[8,7,8,8],[13,14,13,15],[11,3,11,6],[8,14,8,15],[8,9,8,13],[11,7,11,8],[0,0,1,15],[6,7,6,15],[5,6,5,9],[6,3,6,4],[5,3,5,4],[3,2,3,12],[22,9,22,10],[18,9,18,10],[20,9,20,10],[21,2,21,3],[20,2,20,3],[19,9,19,10],[19,2,19,3],[18,2,18,3],[22,2,22,3],[21,9,21,10],[17,9,17,10],[17,2,17,3],[7,14,7,15],[7,9,7,13],[8,2,8,6],[12,14,12,15],[13,7,13,8],[13,3,13,6],[16,2,16,3],[11,10,11,13],[12,3,12,6],[10,3,10,6],[15,5,15,15],[15,0,15,4],[10,7,10,8],[7,0,13,0]]}
["LIGUE DE NORMANDIE DE BILLARD"]
[]
[]
[null,null,"Championnat \"PIERRE LESCAUT\""]
[]
[null,null,"Date : ",null,null,null,"DIVISION (de 1 à 7) :"]
[null,null,null,"(JJ/MM/AAAA)",null,null,null,"Le choix de la division provoque l'affichage des distances"]
["Version : 1.1  du : 2017/2018",null,"Receveur",null,null,null,null,"Equipe",null,"Visiteur ",null,null,null,null,"Equipe"]
[null,null,"CANY-BARVILLE (BCCB)",null,null,null,null,"Equipe B"]
[null,null,"Choisir le nom du club dans la liste ou le saisir manuellement",null,null,null,null,null,null,"Sélectionner le rang de l'équipe (A, B, C, etc.)"]
[null,null,"Joueur","Nom et Prénom",null,null,null,"Licence",null,"Joueur","Nom et Prénom",null,null,null,"Licence"]
[null,null,"A","LIBERT LOUIS PIERRE",null,null,null,{"$f":"IF(ISERROR(R12),\"Non licencié\",R12)","v":"147566 Y"},null,"X","BETILLE ERIC",null,null,null,{"$f":"IF(ISERROR(S12),\"Non licencié\",S12)","v":"153296 B"},null,null,{"$f":"IF(D12<>\"\",VLOOKUP(D12,joueurs,2,FALSE),\"\")","v":"147566 Y"},{"$f":"IF(K12<>\"\",VLOOKUP(K12,joueurs,2,FALSE),\"\")","v":"153296 B"}]
[null,null,"B","MINAULT JACQUES",null,null,null,{"$f":"IF(ISERROR(R13),\"Non licencié\",R13)","v":"144302 C"},null,"Y","MARY JEAN CLAUDE",null,null,null,{"$f":"IF(ISERROR(S13),\"Non licencié\",S13)","v":"153309 Q"},null,null,{"$f":"IF(D13<>\"\",VLOOKUP(D13,joueurs,2,FALSE),\"\")","v":"144302 C"},{"$f":"IF(K13<>\"\",VLOOKUP(K13,joueurs,2,FALSE),\"\")","v":"153309 Q"}]
[null,null,"C","MINAULT MARTINE",null,null,null,{"$f":"IF(ISERROR(R14),\"Non licencié\",R14)","v":"144303 D"},null,"Z","ROUSSET JEAN PAUL",null,null,null,{"$f":"IF(ISERROR(S14),\"Non licencié\",S14)","v":"153670 H"},null,null,{"$f":"IF(D14<>\"\",VLOOKUP(D14,joueurs,2,FALSE),\"\")","v":"144303 D"},{"$f":"IF(K14<>\"\",VLOOKUP(K14,joueurs,2,FALSE),\"\")","v":"153670 H"}]
["Seules les cellules grisées sont à renseigner : manuellement ou à partir de listes préétablies"]
["Toutes les parties sont limitées à 40 reprises",null,null,null,null,"Si une équipe ne présente que 2 joueurs, saisir dans la cellule concernée \"Forfait\"\n(première donnée dans la liste proposée)"]
["Mode de jeu\net distance","Billard","Joueur",null,"Points","Reprises","Moyenne","Série","Points de match","Joueur",null,"Points","Reprises","Moyenne","Série","Points de match"]
["LIBRE",1,{"$f":"CONCATENATE($C$12,\" - \",$D$12,\" \",$F$12)","v":"A - LIBERT LOUIS PIERRE "},null,37,40,{"$f":"IF(F18>0,E18/F18,\" \")","v":0.92500000000000004},5,{"$f":"IF(D12=\"Forfait\",0,IF(K12=\"Forfait\",2,IF(ISBLANK(L18),\"\",IF(E18>L18,2,IF(E18=L18,1,0)))))","v":0},{"$f":"CONCATENATE($J$12,\" - \",$K$12,\" \",$M$12)","v":"X - BETILLE ERIC "},null,40,{"$f":"IF(F18>0,F18,\"\")","v":40},{"$f":"IF(F18>0,L18/M18,\" \")","v":1},5,{"$f":"IF(K12=\"Forfait\",0,IF(I18<>\"\",2-I18,\"\"))","v":2}]
[40,2,{"$f":"CONCATENATE($C$13,\" - \",$D$13,\" \",$F$13)","v":"B - MINAULT JACQUES "},null,26,40,{"$f":"IF(F19>0,E19/F19,\" \")","v":0.65},4,{"$f":"IF(D13=\"Forfait\",0,IF(K13=\"Forfait\",2,IF(ISBLANK(L19),\"\",IF(E19>L19,2,IF(E19=L19,1,0)))))","v":0},{"$f":"CONCATENATE($J$13,\" - \",$K$13,\" \",$M$13)","v":"Y - MARY JEAN CLAUDE "},null,32,40,{"$f":"IF(F19>0,L19/M19,\" \")","v":0.8},5,{"$f":"IF(K13=\"Forfait\",0,IF(I19<>\"\",2-I19,\"\"))","v":2}]
["points",3,{"$f":"CONCATENATE($C$14,\" - \",$D$14,\" \",$F$14)","v":"C - MINAULT MARTINE "},null,27,40,0.67500000000000004,3,{"$f":"IF(D14=\"Forfait\",0,IF(K14=\"Forfait\",2,IF(ISBLANK(L20),\"\",IF(E20>L20,2,IF(E20=L20,1,0)))))","v":2},{"$f":"CONCATENATE($J$14,\" - \",$K$14,\" \",$M$14)","v":"Z - ROUSSET JEAN PAUL "},null,22,40,0.55000000000000004,4,{"$f":"IF(K14=\"Forfait\",0,IF(I20<>\"\",2-I20,\"\"))","v":0}]
["BANDE",{"$f":"IF(B20<>\"\",B20,\"\")","v":3},{"$f":"CONCATENATE($C$13,\" - \",$D$13,\" \",$F$13)","v":"B - MINAULT JACQUES "},null,24,33,0.72727272727272729,5,{"$f":"IF(D13=\"Forfait\",0,IF(K12=\"Forfait\",2,IF(ISBLANK(L21),\"\",IF(E21>L21,2,IF(E21=L21,1,0)))))","v":0},{"$f":"CONCATENATE($J$12,\" - \",$K$12,\" \",$M$12)","v":"X - BETILLE ERIC "},null,25,33,0.75757575757575757,3,{"$f":"IF(K12=\"Forfait\",0,IF(I21<>\"\",2-I21,\"\"))","v":2}]
[25,{"$f":"IF(B18<>\"\",B18,\"\")","v":1},{"$f":"CONCATENATE($C$14,\" - \",$D$14,\" \",$F$14)","v":"C - MINAULT MARTINE "},null,18,40,0.45,4,{"$f":"IF(D14=\"Forfait\",0,IF(K13=\"Forfait\",2,IF(ISBLANK(L22),\"\",IF(E22>L22,2,IF(E22=L22,1,0)))))","v":2},{"$f":"CONCATENATE($J$13,\" - \",$K$13,\" \",$M$13)","v":"Y - MARY JEAN CLAUDE "},null,17,40,0.42499999999999999,4,{"$f":"IF(K13=\"Forfait\",0,IF(I22<>\"\",2-I22,\"\"))","v":0},null,null,null,null,null,null,null,null,"  "]
["points",{"$f":"IF(B19<>\"\",B19,\"\")","v":2},{"$f":"CONCATENATE($C$12,\" - \",$D$12,\" \",$F$12)","v":"A - LIBERT LOUIS PIERRE "},null,15,40,0.375,3,{"$f":"IF(D12=\"Forfait\",0,IF(K14=\"Forfait\",2,IF(ISBLANK(L23),\"\",IF(E23>L23,2,IF(E23=L23,1,0)))))","v":0},{"$f":"CONCATENATE($J$14,\" - \",$K$14,\" \",$M$14)","v":"Z - ROUSSET JEAN PAUL "},null,17,40,0.42499999999999999,3,{"$f":"IF(K14=\"Forfait\",0,IF(I23<>\"\",2-I23,\"\"))","v":2}]
["3 BANDES",{"$f":"IF(B20<>\"\",B20,\"\")","v":3},{"$f":"CONCATENATE($C$12,\" - \",$D$12,\" \",$F$12)","v":"A - LIBERT LOUIS PIERRE "},null,4,40,0.1,1,{"$f":"IF(D12=\"Forfait\",0,IF(K13=\"Forfait\",2,IF(ISBLANK(L24),\"\",IF(E24>L24,2,IF(E24=L24,1,0)))))","v":2},{"$f":"CONCATENATE($J$13,\" - \",$K$13,\" \",$M$13)","v":"Y - MARY JEAN CLAUDE "},null,3,40,7.4999999999999997E-2,1,{"$f":"IF(K13=\"Forfait\",0,IF(I24<>\"\",2-I24,\"\"))","v":0}]
[8,{"$f":"IF(B18<>\"\",B18,\"\")","v":1},{"$f":"CONCATENATE($C$13,\" - \",$D$13,\" \",$F$13)","v":"B - MINAULT JACQUES "},null,7,40,0.17499999999999999,2,{"$f":"IF(D13=\"Forfait\",0,IF(K14=\"Forfait\",2,IF(ISBLANK(L25),\"\",IF(E25>L25,2,IF(E25=L25,1,0)))))","v":2},{"$f":"CONCATENATE($J$14,\" - \",$K$14,\" \",$M$14)","v":"Z - ROUSSET JEAN PAUL "},null,2,40,0.05,1,{"$f":"IF(K14=\"Forfait\",0,IF(I25<>\"\",2-I25,\"\"))","v":0}]
["points",{"$f":"IF(B19<>\"\",B19,\"\")","v":2},{"$f":"CONCATENATE($C$14,\" - \",$D$14,\" \",$F$14)","v":"C - MINAULT MARTINE "},null,4,40,0.1,2,{"$f":"IF(D14=\"Forfait\",0,IF(K12=\"Forfait\",2,IF(ISBLANK(L26),\"\",IF(E26>L26,2,IF(E26=L26,1,0)))))","v":0},{"$f":"CONCATENATE($J$12,\" - \",$K$12,\" \",$M$12)","v":"X - BETILLE ERIC "},null,5,40,0.125,2,{"$f":"IF(K12=\"Forfait\",0,IF(I26<>\"\",2-I26,\"\"))","v":2}]
[]
[null,null,null,null,"Total des points de match",null,null,null,{"$f":"SUM(I18:I26)","v":8},null,null,"Total des points de match",null,null,null,{"$f":"SUM(P18:P26)","v":10}]
[null,null,"Signature du capitaine",null,null,null,null,null,null,"Signature du capitaine"]
[]
[]
[]
["Cette feuille est à transmettre à : ",null,null,null,"Francis PITOIS"]
[null,null,null,null,"9, rue de l'église"]
[null,null,null,null,"14370 CHICHEBOVILLE"]
[null,null,null,null,"Téléphone : 06 59 70 29 74     Email : fpitois@gmail,com"]

{"sheet":"Données","index":1,"n_rows":469,"n_cols":22,"rows_kept":469,"cut":false,"hidden":true,"merged":[]}
["Liste des clubs carambole",null,"Billard",null,"Equipes",null,"Divisions",null,null,null,null,null,"Identités","Licence","Club"]
["ARGENCES (ABC)",null,1,null,"Equipe A",null,1,null,null,null,null,null,"Forfait","Sans"]
["ARGENTAN (PLA)",null,2,null,"Equipe B",null,2,null,null,null,"ADJEMIAN","VINCENT",{"$f":"CONCATENATE(K3,\" \",L3)","v":"ADJEMIAN VINCENT"},"137252 Y","ROUEN",null,"ADJEMIAN","VINCENT",{"$f":"CONCATENATE(Q3,\" \",R3)","v":"ADJEMIAN VINCENT"},"137252 Y","ROUEN"]
["BERNAY (BBC)",null,3,null,"Equipe C",null,3,null,null,null,"AHAMD","ABDUZALIL","AHAMD ABDUZALIL","134671 R","OISSEL",null,"AHAMD","ABDUZALIL","AHAMD ABDUZALIL","134671 R","OISSEL"]
["CANY-BARVILLE (BCCB)",null,4,null,"Equipe D",null,4,null,null,null,"ALEXANDRE","JACQUES","ALEXANDRE JACQUES","017869 H","SOTTEVILLE",null,"ALEXANDRE","JACQUES","ALEXANDRE JACQUES","017869 H","SOTTEVILLE"]
["CORMELLES (BCC)",null,5,null,"Equipe E",null,5,null,null,null,"ALLART","ELYSE","ALLART ELYSE","113094 U","Saint MARCEL",null,"ALLART","ELYSE","ALLART ELYSE","113094 U","Saint MARCEL"]
["EVREUX (BCE)",null,6,null,null,null,6,null,null,null,"ANTEM","ANTOINE","ANTEM ANTOINE","017606 E","LA SAUSSAYE",null,"ANTEM","ANTOINE","ANTEM ANTOINE","017606 E","LA SAUSSAYE"]
["FECAMP (BCF)",null,7,null,null,null,7,null,null,null,"ARGENTIN","JEAN LUC","ARGENTIN JEAN LUC","137351 T","FÉCAMP",null,"ARGENTIN","JEAN LUC","ARGENTIN JEAN LUC","137351 T","FÉCAMP"]
["FLEURY/ANDELLE (FBC)",null,8,null,null,null,null,null,null,null,"ARRIVE","JEAN LUC","ARRIVE JEAN LUC","100560 S","LA SAUSSAYE",null,"ARRIVE","JEAN LUC","ARRIVE JEAN LUC","100560 S","LA SAUSSAYE"]
["GAILLON (BCG)",null,9,null,null,null,null,null,null,null,"AUBERT","DANIEL","AUBERT DANIEL","131880 I","Les ANDELYS",null,"AUBERT","DANIEL","AUBERT DANIEL","131880 I","Les ANDELYS"]
["LA SAUSSAYE (BCS)",null,null,null,null,null,null,null,null,null,"AUBERT","JEAN PAUL","AUBERT JEAN PAUL","129110 U","Les ANDELYS",null,"AUBERT","JEAN PAUL","AUBERT JEAN PAUL","129110 U","Les ANDELYS"]
["LE HAVRE (CEHB)",null,null,null,null,null,null,null,null,null,"AYMONOD","MICHEL","AYMONOD MICHEL","127128 O","Les ANDELYS",null,"AYMONOD","MICHEL","AYMONOD MICHEL","127128 O","Les ANDELYS"]
["LES ANDELYS (BCA)",null,null,null,null,null,null,null,null,null,"AZIZIAN","RICHARD","AZIZIAN RICHARD","017803 T","Saint NICOLAS",null,"AZIZIAN","RICHARD","AZIZIAN RICHARD","017803 T","Saint NICOLAS"]
["LISIEUX (BCL)",null,null,null,null,null,null,null,null,null,"BACCHETTI","JEAN MARC","BACCHETTI JEAN MARC","146123 D","CORMELLES",null,"BACCHETTI","JEAN MARC","BACCHETTI JEAN MARC","146123 D","CORMELLES"]
["LOUVIERS (BACL)",null,null,null,null,null,null,null,null,null,"BAILLARD","JACQUES","BAILLARD JACQUES","137443 H","FÉCAMP",null,"BAILLARD","JACQUES","BAILLARD JACQUES","137443 H","FÉCAMP"]
["OISSEL (BCO)",null,null,null,null,null,null,null,null,null,"BAILLY","NICOLAS","BAILLY NICOLAS","129095 F","LOUVIERS",null,"BAILLY","NICOLAS","BAILLY NICOLAS","129095 F","LOUVIERS"]
["PACY/EURE (BCP)",null,null,null,null,null,null,null,null,null,"BAINEE","GERARD","BAINEE GERARD","119857 X","LISIEUX",null,"BAINEE","GERARD","BAINEE GERARD","119857 X","LISIEUX"]
["ROUEN (RBC)",null,null,null,null,null,null,null,null,null,"BAIS","PHILIPPE","BAIS PHILIPPE","153013 T","ROUEN",null,"BAIS","PHILIPPE","BAIS PHILIPPE","153013 T","ROUEN"]
["RUGLES (USR-BC)",null,null,null,null,null,null,null,null,null,"BAMIERE","JACQUES","BAMIERE JACQUES","136315 X","LOUVIERS",null,"BAMIERE","JACQUES","BAMIERE JACQUES","136315 X","LOUVIERS"]
["SAINT MARCEL (BCSM)",null,null,null,null,null,null,null,null,null,"BARBEY","BERTRAND","BARBEY BERTRAND","157290 S","Saint MARCEL",null,"BARBEY","BERTRAND","BARBEY BERTRAND","157290 S","Saint MARCEL"]
["SAINT NICOLAS (BCSNA)",null,null,null,null,null,null,null,null,null,"BARBIER","JEAN LUC","BARBIER JEAN LUC","017571 V","EVREUX",null,"BARBIER","JEAN LUC","BARBIER JEAN LUC","017571 V","EVREUX"]
["SOTTEVILLE (BCS)",null,null,null,null,null,null,null,null,null,"BASSIERE","JEAN PIERRE","BASSIERE JEAN PIERRE","4338 J","BERNAY",null,"BASSIERE","JEAN PIERRE","BASSIERE JEAN PIERRE","4338 J","BERNAY"]
["URVILLE (ASSUN BC)",null,null,null,null,null,null,null,null,null,"BATAILLE","VINCENT","BATAILLE VINCENT","017754 W","ROUEN",null,"BATAILLE","VINCENT","BATAILLE VINCENT","017754 W","ROUEN"]
[null,null,null,null,null,null,null,null,null,null,"BATUT","PIERRE","BATUT PIERRE","104045 T","ROUEN",null,"BATUT","PIERRE","BATUT PIERRE","104045 T","ROUEN"]
[null,null,null,null,null,null,null,null,null,null,"BAUDER","GILBERT","BAUDER GILBERT","017689 J","Saint NICOLAS",null,"BAUDER","GILBERT","BAUDER GILBERT","017689 J","Saint NICOLAS"]
[null,null,null,null,null,null,null,null,null,null,"BAUX","REGIS","BAUX REGIS","148240 F","Saint MARCEL",null,"BAUX","REGIS","BAUX REGIS","148240 F","Saint MARCEL"]
[null,null,null,null,null,null,null,null,null,null,"BAVILLE","SYLVAIN","BAVILLE SYLVAIN","152619 Q","SOTTEVILLE",null,"BAVILLE","SYLVAIN","BAVILLE SYLVAIN","152619 Q","SOTTEVILLE"]
[null,null,null,null,null,null,null,null,null,null,"BAZAUD","FRANCK","BAZAUD FRANCK","122758 M","LOUVIERS",null,"BAZAUD","FRANCK","BAZAUD FRANCK","122758 M","LOUVIERS"]
[null,null,null,null,null,null,null,null,null,null,"BEAUGRAND","CHRISTIAN","BEAUGRAND CHRISTIAN","161679 N","CANY-BARVILLE",null,"BEAUGRAND","CHRISTIAN","BEAUGRAND CHRISTIAN","161679 N","CANY-BARVILLE"]
[null,null,null,null,null,null,null,null,null,null,"BEGUIN","CLAUDE","BEGUIN CLAUDE","150707 M","Les ANDELYS",null,"BEGUIN","CLAUDE","BEGUIN CLAUDE","150707 M","Les ANDELYS"]
[null,null,null,null,null,null,null,null,null,null,"BELDAME","DANIEL","BELDAME DANIEL","112270 C","LA SAUSSAYE",null,"BELDAME","DANIEL","BELDAME DANIEL","112270 C","LA SAUSSAYE"]
[null,null,null,null,null,null,null,null,null,null,"BERMENT","DIDIER","BERMENT DIDIER","129135 T","SOTTEVILLE",null,"BERMENT","DIDIER","BERMENT DIDIER","129135 T","SOTTEVILLE"]
[null,null,null,null,null,null,null,null,null,null,"BERTRAND","MICHEL","BERTRAND MICHEL","142970 W","SOTTEVILLE",null,"BERTRAND","MICHEL","BERTRAND MICHEL","142970 W","SOTTEVILLE"]
[null,null,null,null,null,null,null,null,null,null,"BETILLE","ERIC","BETILLE ERIC","153296 B","BERNAY",null,"BETILLE","ERIC","BETILLE ERIC","153296 B","BERNAY"]
[null,null,null,null,null,null,null,null,null,null,"BETON","DOMINIQUE",{"$f":"CONCATENATE(K35,\" \",L35)","v":"BETON DOMINIQUE"},"017629 B","LOUVIERS",null,"BETON","DOMINIQUE","BETON DOMINIQUE","017629 B","LOUVIERS"]
[null,null,null,null,null,null,null,null,null,null,"BETON","VALERIE","BETON VALERIE","147263 T","LOUVIERS",null,"BETON","VALERIE","BETON VALERIE","147263 T","LOUVIERS"]
[null,null,null,null,null,null,null,null,null,null,"BEZARD","GEORGES","BEZARD GEORGES","137339 H","LA SAUSSAYE",null,"BEZARD","GEORGES","BEZARD GEORGES","137339 H","LA SAUSSAYE"]
[null,null,null,null,null,null,null,null,null,null,"BIANCHINI","JEAN ROBERT","BIANCHINI JEAN ROBERT","106781 Z","LE HAVRE",null,"BIANCHINI","JEAN ROBERT","BIANCHINI JEAN ROBERT","106781 Z","LE HAVRE"]
[null,null,null,null,null,null,null,null,null,null,"BIDAULT","ALAIN","BIDAULT ALAIN","160279 R","ROUEN",null,"BIDAULT","ALAIN","BIDAULT ALAIN","160279 R","ROUEN"]
[null,null,null,null,null,null,null,null,null,null,"BIETTE","CLAUDE","BIETTE CLAUDE","017497 Z","LISIEUX",null,"BIETTE","CLAUDE","BIETTE CLAUDE","017497 Z","LISIEUX"]
[null,null,null,null,null,null,null,null,null,null,"BILLARD","DAVID","BILLARD DAVID","017465 T","CORMELLES",null,"BILLARD","DAVID","BILLARD DAVID","017465 T","CORMELLES"]
[null,null,null,null,null,null,null,null,null,null,"BLANCO","PASCALE","BLANCO PASCALE","148074 A","LOUVIERS",null,"BLANCO","PASCALE","BLANCO PASCALE","148074 A","LOUVIERS"]
[null,null,null,null,null,null,null,null,null,null,"BLAUWBLOMME","HENK","BLAUWBLOMME HENK","128972 M","ROUEN",null,"BLAUWBLOMME","HENK","BLAUWBLOMME HENK","128972 M","ROUEN"]
[null,null,null,null,null,null,null,null,null,null,"BLONDEL","JEAN THIERRY","BLONDEL JEAN THIERRY","144155 L","LE HAVRE",null,"BLONDEL","JEAN THIERRY","BLONDEL JEAN THIERRY","144155 L","LE HAVRE"]
[null,null,null,null,null,null,null,null,null,null,"BONHOMME","ERIC","BONHOMME ERIC","144156 M","LE HAVRE",null,"BONHOMME","ERIC","BONHOMME ERIC","144156 M","LE HAVRE"]
[null,null,null,null,null,null,null,null,null,null,"BOREL","PASCAL","BOREL PASCAL","145960 W","LOUVIERS",null,"BOREL","PASCAL","BOREL PASCAL","145960 W","LOUVIERS"]
[null,null,null,null,null,null,null,null,null,null,"BOUGOUIN","JEAN MICHEL","BOUGOUIN JEAN MICHEL","149537 Q","CORMELLES",null,"BOUGOUIN","JEAN MICHEL","BOUGOUIN JEAN MICHEL","149537 Q","CORMELLES"]
[null,null,null,null,null,null,null,null,null,null,"BOULIER","ALAIN","BOULIER ALAIN","152578 W","Saint MARCEL",null,"BOULIER","ALAIN","BOULIER ALAIN","152578 W","Saint MARCEL"]
[null,null,null,null,null,null,null,null,null,null,"BOULNOIS","JACQUES","BOULNOIS JACQUES","011871 P","CANY-BARVILLE",null,"BOULNOIS","JACQUES","BOULNOIS JACQUES","011871 P","CANY-BARVILLE"]
[null,null,null,null,null,null,null,null,null,null,"BOURDON","PASCAL","BOURDON PASCAL","162365 J","Saint MARCEL",null,"BOURDON","PASCAL","BOURDON PASCAL","162365 J","Saint MARCEL"]
[null,null,null,null,null,null,null,null,null,null,"BOURDOULOU","MARCEL","BOURDOULOU MARCEL","017892 E","Saint MARCEL",null,"BOURDOULOU","MARCEL","BOURDOULOU MARCEL","017892 E","Saint MARCEL"]
[null,null,null,null,null,null,null,null,null,null,"BOUREL","CLAUDE","BOUREL CLAUDE","128208 C","SOTTEVILLE",null,"BOUREL","CLAUDE","BOUREL CLAUDE","128208 C","SOTTEVILLE"]
[null,null,null,null,null,null,null,null,null,null,"BOURGET","ALAIN","BOURGET ALAIN","017466 U","CORMELLES",null,"BOURGET","ALAIN","BOURGET ALAIN","017466 U","CORMELLES"]
[null,null,null,null,null,null,null,null,null,null,"BOUTIN","LAURENT","BOUTIN LAURENT","137982 A","LA SAUSSAYE",null,"BOUTIN","LAURENT","BOUTIN LAURENT","137982 A","LA SAUSSAYE"]
[null,null,null,null,null,null,null,null,null,null,"BOUTINAUD","CLAUDE","BOUTINAUD CLAUDE","017558 I","OISSEL",null,"BOUTINAUD","CLAUDE","BOUTINAUD CLAUDE","017558 I","OISSEL"]
[null,null,null,null,null,null,null,null,null,null,"BOUTRAIS","DOMINIQUE","BOUTRAIS DOMINIQUE","017617 P","CORMELLES",null,"BOUTRAIS","DOMINIQUE","BOUTRAIS DOMINIQUE","017617 P","CORMELLES"]
[null,null,null,null,null,null,null,null,null,null,"BOUTTIER","JACKY","BOUTTIER JACKY","153690 E","ROUEN",null,"BOUTTIER","JACKY","BOUTTIER JACKY","153690 E","ROUEN"]
[null,null,null,null,null,null,null,null,null,null,"BOUVIER","BERTRAND","BOUVIER BERTRAND","149399 Q","CORMELLES",null,"BOUVIER","BERTRAND","BOUVIER BERTRAND","149399 Q","CORMELLES"]
[null,null,null,null,null,null,null,null,null,null,"BOUVIER","GUILLAUME","BOUVIER GUILLAUME","149400 R","CORMELLES",null,"BOUVIER","GUILLAUME","BOUVIER GUILLAUME","149400 R","CORMELLES"]
[null,null,null,null,null,null,null,null,null,null,"BRABANT","MATTHIEU","BRABANT MATTHIEU","146291 P","CANY-BARVILLE",null,"BRABANT","MATTHIEU","BRABANT MATTHIEU","146291 P","CANY-BARVILLE"]
[null,null,null,null,null,null,null,null,null,null,"BRAEMS","CHRISTOPHE","BRAEMS CHRISTOPHE","160930 Z","CANY-BARVILLE",null,"BRAEMS","CHRISTOPHE","BRAEMS CHRISTOPHE","160930 Z","CANY-BARVILLE"]
[null,null,null,null,null,null,null,null,null,null,"BRAEMS","FLORIAN","BRAEMS FLORIAN","160931 A","CANY-BARVILLE",null,"BRAEMS","FLORIAN","BRAEMS FLORIAN","160931 A","CANY-BARVILLE"]
[null,null,null,null,null,null,null,null,null,null,"BRANCO","ANTHONY","BRANCO ANTHONY","018075 F","SOTTEVILLE",null,"BRANCO","ANTHONY","BRANCO ANTHONY","018075 F","SOTTEVILLE"]
[null,null,null,null,null,null,null,null,null,null,"BRETTEVILLE","DENIS","BRETTEVILLE DENIS","127508 E","LE HAVRE",null,"BRETTEVILLE","DENIS","BRETTEVILLE DENIS","127508 E","LE HAVRE"]
[null,null,null,null,null,null,null,null,null,null,"BROWANG","CLAUDE","BROWANG CLAUDE","107038 W","GAILLON",null,"BROWANG","CLAUDE","BROWANG CLAUDE","107038 W","GAILLON"]
[null,null,null,null,null,null,null,null,null,null,"BROWANG","MICHEL","BROWANG MICHEL","107040 Y","GAILLON",null,"BROWANG","MICHEL","BROWANG MICHEL","107040 Y","GAILLON"]
[null,null,null,null,null,null,null,null,null,null,"BRULARD","DANIEL",{"$f":"CONCATENATE(K67,\" \",L67)","v":"BRULARD DANIEL"},"017658 E","LOUVIERS",null,"BRULARD","DANIEL",{"$f":"CONCATENATE(Q67,\" \",R67)","v":"BRULARD DANIEL"},"017658 E","LOUVIERS"]
[null,null,null,null,null,null,null,null,null,null,"BRUNET","ANDRE","BRUNET ANDRE","017746 O","LISIEUX",null,"BRUNET","ANDRE","BRUNET ANDRE","017746 O","LISIEUX"]
[null,null,null,null,null,null,null,null,null,null,"BUNEL","GUY","BUNEL GUY","112004 W","LA SAUSSAYE",null,"BUNEL","GUY","BUNEL GUY","112004 W","LA SAUSSAYE"]
[null,null,null,null,null,null,null,null,null,null,"BUSSIERE","GILBERT","BUSSIERE GILBERT","152826 Q","LOUVIERS",null,"BUSSIERE","GILBERT","BUSSIERE GILBERT","152826 Q","LOUVIERS"]
[null,null,null,null,null,null,null,null,null,null,"BUTELET","JEAN PAUL","BUTELET JEAN PAUL","017610 I","LA SAUSSAYE",null,"BUTELET","JEAN PAUL","BUTELET JEAN PAUL","017610 I","LA SAUSSAYE"]
[null,null,null,null,null,null,null,null,null,null,"CADINOT","SEBASTIEN","CADINOT SEBASTIEN","158947 T","OISSEL",null,"CADINOT","SEBASTIEN","CADINOT SEBASTIEN","158947 T","OISSEL"]
[null,null,null,null,null,null,null,null,null,null,"CAJEAN","PHILIPPE","CAJEAN PHILIPPE","010634 A","EVREUX",null,"CAJEAN","PHILIPPE","CAJEAN PHILIPPE","010634 A","EVREUX"]
[null,null,null,null,null,null,null,null,null,null,"CARDON","JEAN CLAUDE","CARDON JEAN CLAUDE","017542 S","SOTTEVILLE",null,"CARDON","JEAN CLAUDE","CARDON JEAN CLAUDE","017542 S","SOTTEVILLE"]
[null,null,null,null,null,null,null,null,null,null,"CARDON","JEAN PIERRE","CARDON JEAN PIERRE","112578 Y","SOTTEVILLE",null,"CARDON","JEAN PIERRE","CARDON JEAN PIERRE","112578 Y","SOTTEVILLE"]
[null,null,null,null,null,null,null,null,null,null,"CARPENTIER","DIDIER","CARPENTIER DIDIER","152654 D","FÉCAMP",null,"CARPENTIER","DIDIER","CARPENTIER DIDIER","152654 D","FÉCAMP"]
[null,null,null,null,null,null,null,null,null,null,"CARPENTIER","CHRISTIAN",{"$f":"CONCATENATE(K77,\" \",L77)","v":"CARPENTIER CHRISTIAN"},"135579 P","PACY",null,"CARPENTIER","CHRISTIAN","CARPENTIER CHRISTIAN","135579 P","PACY"]
[null,null,null,null,null,null,null,null,null,null,"CARRE","PIERRE","CARRE PIERRE","017467 V","CORMELLES",null,"CARRE","PIERRE","CARRE PIERRE","017467 V","CORMELLES"]
[null,null,null,null,null,null,null,null,null,null,"CAZAUX","JEAN MARC","CAZAUX JEAN MARC","017643 P","LE HAVRE",null,"CAZAUX","JEAN MARC","CAZAUX JEAN MARC","017643 P","LE HAVRE"]
[null,null,null,null,null,null,null,null,null,null,"CHAGNOT","JEAN CLAUDE","CHAGNOT JEAN CLAUDE","017621 T","OISSEL",null,"CHAGNOT","JEAN CLAUDE","CHAGNOT JEAN CLAUDE","017621 T","OISSEL"]
[null,null,null,null,null,null,null,null,null,null,"CHALVET","PATRICE","CHALVET PATRICE","018027 J","Saint MARCEL",null,"CHALVET","PATRICE","CHALVET PATRICE","018027 J","Saint MARCEL"]
[null,null,null,null,null,null,null,null,null,null,"CHAMP","FRANCOIS","CHAMP FRANCOIS","159430 T","ROUEN",null,"CHAMP","FRANCOIS","CHAMP FRANCOIS","159430 T","ROUEN"]
[null,null,null,null,null,null,null,null,null,null,"CHANTELOUP","THEO","CHANTELOUP THEO","162695 S","ROUEN",null,"CHANTELOUP","THEO","CHANTELOUP THEO","162695 S","ROUEN"]
[null,null,null,null,null,null,null,null,null,null,"CHAPLEAU","FRANCOIS","CHAPLEAU FRANCOIS","137817 R","LE HAVRE",null,"CHAPLEAU","FRANCOIS","CHAPLEAU FRANCOIS","137817 R","LE HAVRE"]
[null,null,null,null,null,null,null,null,null,null,"CHARBONNIER","PHILIPPE","CHARBONNIER PHILIPPE","127340 S","CANY-BARVILLE",null,"CHARBONNIER","PHILIPPE","CHARBONNIER PHILIPPE","127340 S","CANY-BARVILLE"]
[null,null,null,null,null,null,null,null,null,null,"CHESNEAU","JACQUES","CHESNEAU JACQUES","133832 K","Saint MARCEL",null,"CHESNEAU","JACQUES","CHESNEAU JACQUES","133832 K","Saint MARCEL"]
[null,null,null,null,null,null,null,null,null,null,"CHOLLET","LIONEL","CHOLLET LIONEL","107240 Q","LA SAUSSAYE",null,"CHOLLET","LIONEL","CHOLLET LIONEL","107240 Q","LA SAUSSAYE"]
[null,null,null,null,null,null,null,null,null,null,"CHOUPAUT","BRUNO","CHOUPAUT BRUNO","151711 D","SOTTEVILLE",null,"CHOUPAUT","BRUNO","CHOUPAUT BRUNO","151711 D","SOTTEVILLE"]
[null,null,null,null,null,null,null,null,null,null,"CINTRAT","PHILIPPE","CINTRAT PHILIPPE","150890 L","Les ANDELYS",null,"CINTRAT","PHILIPPE","CINTRAT PHILIPPE","150890 L","Les ANDELYS"]
[null,null,null,null,null,null,null,null,null,null,"COCHARD","PATRICK","COCHARD PATRICK","145961 X","LOUVIERS",null,"COCHARD","PATRICK","COCHARD PATRICK","145961 X","LOUVIERS"]
[null,null,null,null,null,null,null,null,null,null,"COCY","GILLES","COCY GILLES","017709 D","LE HAVRE",null,"COCY","GILLES","COCY GILLES","017709 D","LE HAVRE"]
[null,null,null,null,null,null,null,null,null,null,"COEVOET","ERIC","COEVOET ERIC","017586 K","PACY",null,"COEVOET","ERIC","COEVOET ERIC","017586 K","PACY"]
[null,null,null,null,null,null,null,null,null,null,"COLIN","GUY","COLIN GUY","111081 J","Saint MARCEL",null,"COLIN","GUY","COLIN GUY","111081 J","Saint MARCEL"]
[null,null,null,null,null,null,null,null,null,null,"COLINET","JEAN LUC","COLINET JEAN LUC","153098 L","Les ANDELYS",null,"COLINET","JEAN LUC","COLINET JEAN LUC","153098 L","Les ANDELYS"]
[null,null,null,null,null,null,null,null,null,null,"COLLE","GREGORY","COLLE GREGORY","017823 N","OISSEL",null,"COLLE","GREGORY","COLLE GREGORY","017823 N","OISSEL"]
[null,null,null,null,null,null,null,null,null,null,"CONESA","BRIGITTE","CONESA BRIGITTE","160190 V","LA SAUSSAYE",null,"CONESA","BRIGITTE","CONESA BRIGITTE","160190 V","LA SAUSSAYE"]
[null,null,null,null,null,null,null,null,null,null,"CONORT","PIERRE","CONORT PIERRE","114995 X","LE HAVRE",null,"CONORT","PIERRE","CONORT PIERRE","114995 X","LE HAVRE"]
[null,null,null,null,null,null,null,null,null,null,"CORNO","YVES","CORNO YVES","142307 J","PACY",null,"CORNO","YVES","CORNO YVES","142307 J","PACY"]
[null,null,null,null,null,null,null,null,null,null,"COTTENCEAU","ROBERT","COTTENCEAU ROBERT","139911 F","LOUVIERS",null,"COTTENCEAU","ROBERT","COTTENCEAU ROBERT","139911 F","LOUVIERS"]
[null,null,null,null,null,null,null,null,null,null,"COUCHOT","BERNARD","COUCHOT BERNARD","112010 C","CORMELLES",null,"COUCHOT","BERNARD","COUCHOT BERNARD","112010 C","CORMELLES"]
[null,null,null,null,null,null,null,null,null,null,"COUCKE","CHRISTIAN","COUCKE CHRISTIAN","6041 J","ARGENCES",null,"COUCKE","CHRISTIAN","COUCKE CHRISTIAN","6041 J","ARGENCES"]
[null,null,null,null,null,null,null,null,null,null,"COUDREAU","ANDRE","COUDREAU ANDRE","131881 J","Les ANDELYS",null,"COUDREAU","ANDRE","COUDREAU ANDRE","131881 J","Les ANDELYS"]
[null,null,null,null,null,null,null,null,null,null,"CRASSOUS","OLIVIER","CRASSOUS OLIVIER","126209 F","BERNAY",null,"CRASSOUS","OLIVIER","CRASSOUS OLIVIER","126209 F","BERNAY"]
[null,null,null,null,null,null,null,null,null,null,"CUGNIN","GEORGES","CUGNIN GEORGES","017543 T","ROUEN",null,"CUGNIN","GEORGES","CUGNIN GEORGES","017543 T","ROUEN"]
[null,null,null,null,null,null,null,null,null,null,"CUVIER","GILLES","CUVIER GILLES","120322 U","CANY-BARVILLE",null,"CUVIER","GILLES","CUVIER GILLES","120322 U","CANY-BARVILLE"]
[null,null,null,null,null,null,null,null,null,null,"CUVILLIEZ","FRANCOISE","CUVILLIEZ FRANCOISE","150560 C","FÉCAMP",null,"CUVILLIEZ","FRANCOISE","CUVILLIEZ FRANCOISE","150560 C","FÉCAMP"]
[null,null,null,null,null,null,null,null,null,null,"DAIGLE","MICHEL","DAIGLE MICHEL","145242 G","ARGENCES",null,"DAIGLE","MICHEL","DAIGLE MICHEL","145242 G","ARGENCES"]
[null,null,null,null,null,null,null,null,null,null,"DAIREAUX","SERGE","DAIREAUX SERGE","106824 Q","EVREUX",null,"DAIREAUX","SERGE","DAIREAUX SERGE","106824 Q","EVREUX"]
[null,null,null,null,null,null,null,null,null,null,"DAUSSY","ROGER",{"$f":"CONCATENATE(K109,\" \",L109)","v":"DAUSSY ROGER"},"017693 N","FÉCAMP",null,"DAUSSY","ROGER","DAUSSY ROGER","017693 N","FÉCAMP"]
[null,null,null,null,null,null,null,null,null,null,"DAUTRY","ANNICK","DAUTRY ANNICK","106284 W","LOUVIERS",null,"DAUTRY","ANNICK","DAUTRY ANNICK","106284 W","LOUVIERS"]
[null,null,null,null,null,null,null,null,null,null,"DAVITTI","CLAUDE","DAVITTI CLAUDE","144074 I","OISSEL",null,"DAVITTI","CLAUDE","DAVITTI CLAUDE","144074 I","OISSEL"]
[null,null,null,null,null,null,null,null,null,null,"DAVOINE","BRUNO","DAVOINE BRUNO","017482 K","ROUEN",null,"DAVOINE","BRUNO","DAVOINE BRUNO","017482 K","ROUEN"]
[null,null,null,null,null,null,null,null,null,null,"DE TOFFOLI","JEAN ANTOINE","DE TOFFOLI JEAN ANTOINE","017476 E","GAILLON",null,"DE TOFFOLI","JEAN ANTOINE","DE TOFFOLI JEAN ANTOINE","017476 E","GAILLON"]
[null,null,null,null,null,null,null,null,null,null,"DEBRAY","JEAN PIERRE","DEBRAY JEAN PIERRE","122682 O","ARGENCES",null,"DEBRAY","JEAN PIERRE","DEBRAY JEAN PIERRE","122682 O","ARGENCES"]
[null,null,null,null,null,null,null,null,null,null,"DEBRIS","JEAN","DEBRIS JEAN","162599 N","FÉCAMP",null,"DEBRIS","JEAN","DEBRIS JEAN","162599 N","FÉCAMP"]
[null,null,null,null,null,null,null,null,null,null,"DELACOTTE","JEAN LOUIS","DELACOTTE JEAN LOUIS","124006 M","LE HAVRE",null,"DELACOTTE","JEAN LOUIS","DELACOTTE JEAN LOUIS","124006 M","LE HAVRE"]
[null,null,null,null,null,null,null,null,null,null,"DELALONDRE","MAX","DELALONDRE MAX","110690 I","LOUVIERS",null,"DELALONDRE","MAX","DELALONDRE MAX","110690 I","LOUVIERS"]
[null,null,null,null,null,null,null,null,null,null,"DELAMARRE","ERIC","DELAMARRE ERIC","129114 Y","LOUVIERS",null,"DELAMARRE","ERIC","DELAMARRE ERIC","129114 Y","LOUVIERS"]
[null,null,null,null,null,null,null,null,null,null,"DELOBEL","FREDERIC","DELOBEL FREDERIC","126193 P","LOUVIERS",null,"DELOBEL","FREDERIC","DELOBEL FREDERIC","126193 P","LOUVIERS"]
[null,null,null,null,null,null,null,null,null,null,"DEMELLIER","RENE","DEMELLIER RENE","018014 W","EVREUX",null,"DEMELLIER","RENE","DEMELLIER RENE","018014 W","EVREUX"]
[null,null,null,null,null,null,null,null,null,null,"DEMERSEMAN","MICHEL","DEMERSEMAN MICHEL","108157 X","EVREUX",null,"DEMERSEMAN","MICHEL","DEMERSEMAN MICHEL","108157 X","EVREUX"]
[null,null,null,null,null,null,null,null,null,null,"DEMON","HENRI","DEMON HENRI","017468 W","ARGENCES",null,"DEMON","HENRI","DEMON HENRI","017468 W","ARGENCES"]
[null,null,null,null,null,null,null,null,null,null,"DENIS","ERIC","DENIS ERIC","162693 Q","ROUEN",null,"DENIS","ERIC","DENIS ERIC","162693 Q","ROUEN"]
[null,null,null,null,null,null,null,null,null,null,"DERONGS","DANIEL","DERONGS DANIEL","147139 J","Les ANDELYS",null,"DERONGS","DANIEL","DERONGS DANIEL","147139 J","Les ANDELYS"]
[null,null,null,null,null,null,null,null,null,null,"DESPIT","DANIEL","DESPIT DANIEL","127746 I","PACY",null,"DESPIT","DANIEL","DESPIT DANIEL","127746 I","PACY"]
[null,null,null,null,null,null,null,null,null,null,"DEVILLERS","FABRICE","DEVILLERS FABRICE","124009 P","EVREUX",null,"DEVILLERS","FABRICE","DEVILLERS FABRICE","124009 P","EVREUX"]
[null,null,null,null,null,null,null,null,null,null,"DEVILLERS","JACQUES","DEVILLERS JACQUES","122704 K","LISIEUX",null,"DEVILLERS","JACQUES","DEVILLERS JACQUES","122704 K","LISIEUX"]
[null,null,null,null,null,null,null,null,null,null,"DEWULF","ARMELLE","DEWULF ARMELLE","160693 R","Saint MARCEL",null,"DEWULF","ARMELLE","DEWULF ARMELLE","160693 R","Saint MARCEL"]
[null,null,null,null,null,null,null,null,null,null,"DEZETANT","MARCEL","DEZETANT MARCEL","017627 Z","LA SAUSSAYE",null,"DEZETANT","MARCEL","DEZETANT MARCEL","017627 Z","LA SAUSSAYE"]
[null,null,null,null,null,null,null,null,null,null,"DONNEGER","ABEL","DONNEGER ABEL","017790 G","ROUEN",null,"DONNEGER","ABEL","DONNEGER ABEL","017790 G","ROUEN"]
[null,null,null,null,null,null,null,null,null,null,"DOUILLOT","ANDRE","DOUILLOT ANDRE","142403 B","GAILLON",null,"DOUILLOT","ANDRE",{"$f":"CONCATENATE(Q131,\" \",R131)","v":"DOUILLOT ANDRE"},"142403 B","GAILLON"]
[null,null,null,null,null,null,null,null,null,null,"DRIEUX","ALAIN","DRIEUX ALAIN","159344 A","GAILLON",null,"DRIEUX","ALAIN","DRIEUX ALAIN","159344 A","GAILLON"]
[null,null,null,null,null,null,null,null,null,null,"DROUHAULT","JEAN MICHEL","DROUHAULT JEAN MICHEL","159932 P","Les ANDELYS",null,"DROUHAULT","JEAN MICHEL","DROUHAULT JEAN MICHEL","159932 P","Les ANDELYS"]
[null,null,null,null,null,null,null,null,null,null,"DU BOUCHAGE","MICKAEL","DU BOUCHAGE MICKAEL","126212 I","CORMELLES",null,"DU BOUCHAGE","MICKAEL","DU BOUCHAGE MICKAEL","126212 I","CORMELLES"]
[null,null,null,null,null,null,null,null,null,null,"DUBOIS","JEAN","DUBOIS JEAN","103865 V","SOTTEVILLE",null,"DUBOIS","JEAN","DUBOIS JEAN","103865 V","SOTTEVILLE"]
[null,null,null,null,null,null,null,null,null,null,"DUCROCQ","DIDIER","DUCROCQ DIDIER","145451 H","LA SAUSSAYE",null,"DUCROCQ","DIDIER","DUCROCQ DIDIER","145451 H","LA SAUSSAYE"]
[null,null,null,null,null,null,null,null,null,null,"DUCROCQ","MICKAEL","DUCROCQ MICKAEL","145450 G","LA SAUSSAYE",null,"DUCROCQ","MICKAEL","DUCROCQ MICKAEL","145450 G","LA SAUSSAYE"]
[null,null,null,null,null,null,null,null,null,null,"DUFILS","LIONEL","DUFILS LIONEL","154535 Y","Saint MARCEL",null,"DUFILS","LIONEL","DUFILS LIONEL","154535 Y","Saint MARCEL"]
[null,null,null,null,null,null,null,null,null,null,"DUHOMME","JACQUES","DUHOMME JACQUES","126192 O","LISIEUX",null,"DUHOMME","JACQUES","DUHOMME JACQUES","126192 O","LISIEUX"]
[null,null,null,null,null,null,null,null,null,null,"DUMARTIN","BERTRAND","DUMARTIN BERTRAND","163172 L","LOUVIERS",null,"DUMARTIN","BERTRAND","DUMARTIN BERTRAND","163172 L","LOUVIERS"]
[null,null,null,null,null,null,null,null,null,null,"DUMESNIL","ROGER",{"$f":"CONCATENATE(K141,\" \",L141)","v":"DUMESNIL ROGER"},"100613 T","ARGENCES",null,"DUMESNIL","ROGER","DUMESNIL ROGER","100613 T","ARGENCES"]
[null,null,null,null,null,null,null,null,null,null,"DUMOND","PIERRE","DUMOND PIERRE","136046 O","Saint MARCEL",null,"DUMOND","PIERRE","DUMOND PIERRE","136046 O","Saint MARCEL"]
[null,null,null,null,null,null,null,null,null,null,"DUMONT","DOMINIQUE","DUMONT DOMINIQUE","017926 M","LA SAUSSAYE",null,"DUMONT","DOMINIQUE","DUMONT DOMINIQUE","017926 M","LA SAUSSAYE"]
[null,null,null,null,null,null,null,null,null,null,"DUONG","KHENN","DUONG KHENN","161710 X","LOUVIERS",null,"DUONG","KHENN","DUONG KHENN","161710 X","LOUVIERS"]
[null,null,null,null,null,null,null,null,null,null,"DUPONCHEL","ALAIN","DUPONCHEL ALAIN","112556 C","LE HAVRE",null,"DUPONCHEL","ALAIN","DUPONCHEL ALAIN","112556 C","LE HAVRE"]
[null,null,null,null,null,null,null,null,null,null,"DUPRE","PATRICK","DUPRE PATRICK","100586 S","CANY-BARVILLE",null,"DUPRE","PATRICK","DUPRE PATRICK","100586 S","CANY-BARVILLE"]
[null,null,null,null,null,null,null,null,null,null,"DURANTI","GILLES","DURANTI GILLES","138224 I","LE HAVRE",null,"DURANTI","GILLES","DURANTI GILLES","138224 I","LE HAVRE"]
[null,null,null,null,null,null,null,null,null,null,"DUTHIL","JEAN","DUTHIL JEAN","017820 K","SOTTEVILLE",null,"DUTHIL","JEAN","DUTHIL JEAN","017820 K","SOTTEVILLE"]
[null,null,null,null,null,null,null,null,null,null,"DUVAL","RENE",{"$f":"CONCATENATE(K149,\" \",L149)","v":"DUVAL RENE"},"129045 H","CORMELLES",null,"DUVAL","RENE","DUVAL RENE","129045 H","CORMELLES"]
[null,null,null,null,null,null,null,null,null,null,"DUVAL","LUDOVIC","DUVAL LUDOVIC","159869 W","EVREUX",null,"DUVAL","LUDOVIC","DUVAL LUDOVIC","159869 W","EVREUX"]
[null,null,null,null,null,null,null,null,null,null,"DUVAL","JEAN PAUL","DUVAL JEAN PAUL","157684 W","FÉCAMP",null,"DUVAL","JEAN PAUL","DUVAL JEAN PAUL","157684 W","FÉCAMP"]
[null,null,null,null,null,null,null,null,null,null,"DUVAL","MICHEL","DUVAL MICHEL","146926 C","Saint NICOLAS",null,"DUVAL","MICHEL","DUVAL MICHEL","146926 C","Saint NICOLAS"]
[null,null,null,null,null,null,null,null,null,null,"EDMONT","GEORGES","EDMONT GEORGES","145455 L","SOTTEVILLE",null,"EDMONT","GEORGES","EDMONT GEORGES","145455 L","SOTTEVILLE"]
[null,null,null,null,null,null,null,null,null,null,"ELIE","JOANNES","ELIE JOANNES","142933 L","ARGENCES",null,"ELIE","JOANNES","ELIE JOANNES","142933 L","ARGENCES"]
[null,null,null,null,null,null,null,null,null,null,"ERONTE","MICHEL","ERONTE MICHEL","017986 U","SOTTEVILLE",null,"ERONTE","MICHEL","ERONTE MICHEL","017986 U","SOTTEVILLE"]
[null,null,null,null,null,null,null,null,null,null,"ESLIER","GUY","ESLIER GUY","112009 B","CORMELLES",null,"ESLIER","GUY","ESLIER GUY","112009 B","CORMELLES"]
[null,null,null,null,null,null,null,null,null,null,"ESTRIER","JEAN CLAUDE","ESTRIER JEAN CLAUDE","017770 M","LE HAVRE",null,"ESTRIER","JEAN CLAUDE","ESTRIER JEAN CLAUDE","017770 M","LE HAVRE"]
[null,null,null,null,null,null,null,null,null,null,"EUDELINE","MICHEL","EUDELINE MICHEL","017479 H","EVREUX",null,"EUDELINE","MICHEL","EUDELINE MICHEL","017479 H","EVREUX"]
[null,null,null,null,null,null,null,null,null,null,"EUDIER","DIDIER","EUDIER DIDIER","159595 Y","LE HAVRE",null,"EUDIER","DIDIER","EUDIER DIDIER","159595 Y","LE HAVRE"]
[null,null,null,null,null,null,null,null,null,null,"EVRARD","LYLIAN","EVRARD LYLIAN","153268 W","LA SAUSSAYE",null,"EVRARD","LYLIAN","EVRARD LYLIAN","153268 W","LA SAUSSAYE"]
[null,null,null,null,null,null,null,null,null,null,"EYBERT BERARD","ROGER","EYBERT BERARD ROGER","155061 V","Saint MARCEL",null,"EYBERT BERARD","ROGER","EYBERT BERARD ROGER","155061 V","Saint MARCEL"]
[null,null,null,null,null,null,null,null,null,null,"FACQUET","SUKMA","FACQUET SUKMA","152234 X","ROUEN",null,"FACQUET","SUKMA","FACQUET SUKMA","152234 X","ROUEN"]
[null,null,null,null,null,null,null,null,null,null,"FACQUET","VINCENT","FACQUET VINCENT","013085 H","ROUEN",null,"FACQUET","VINCENT","FACQUET VINCENT","013085 H","ROUEN"]
[null,null,null,null,null,null,null,null,null,null,"FAGOT","ADRIEN","FAGOT ADRIEN","153247 Y","CANY-BARVILLE",null,"FAGOT","ADRIEN","FAGOT ADRIEN","153247 Y","CANY-BARVILLE"]
[null,null,null,null,null,null,null,null,null,null,"FERNANDEZ","ROBIN","FERNANDEZ ROBIN","141784 G","CANY-BARVILLE",null,"FERNANDEZ","ROBIN","FERNANDEZ ROBIN","141784 G","CANY-BARVILLE"]
[null,null,null,null,null,null,null,null,null,null,"FLEURY","YVES","FLEURY YVES","100521 F","CORMELLES",null,"FLEURY","YVES","FLEURY YVES","100521 F","CORMELLES"]
[null,null,null,null,null,null,null,null,null,null,"FONTAINE","YANN","FONTAINE YANN","131886 O","ROUEN",null,"FONTAINE","YANN","FONTAINE YANN","131886 O","ROUEN"]
[null,null,null,null,null,null,null,null,null,null,"FOURNIAL","CHRISTIAN","FOURNIAL CHRISTIAN","150542 H","Les ANDELYS",null,"FOURNIAL","CHRISTIAN","FOURNIAL CHRISTIAN","150542 H","Les ANDELYS"]
[null,null,null,null,null,null,null,null,null,null,"FRANCOIS","RENE","FRANCOIS RENE","108288 Y","SOTTEVILLE",null,"FRANCOIS","RENE","FRANCOIS RENE","108288 Y","SOTTEVILLE"]
[null,null,null,null,null,null,null,null,null,null,"GAILLARD","JEAN CLAUDE","GAILLARD JEAN CLAUDE","127188 W","EVREUX",null,"GAILLARD","JEAN CLAUDE","GAILLARD JEAN CLAUDE","127188 W","EVREUX"]
[null,null,null,null,null,null,null,null,null,null,"GALAN","JEAN CLAUDE","GALAN JEAN CLAUDE","142631 V","Les ANDELYS",null,"GALAN","JEAN CLAUDE","GALAN JEAN CLAUDE","142631 V","Les ANDELYS"]
[null,null,null,null,null,null,null,null,null,null,"GARO","NAEL","GARO NAEL","156465 W","PACY",null,"GARO","NAEL","GARO NAEL","156465 W","PACY"]
[null,null,null,null,null,null,null,null,null,null,"GARREAU","CYRIL","GARREAU CYRIL","147667 H","LOUVIERS",null,"GARREAU","CYRIL","GARREAU CYRIL","147667 H","LOUVIERS"]
[null,null,null,null,null,null,null,null,null,null,"GASCHY","DAMIEN","GASCHY DAMIEN","160307 X","LOUVIERS",null,"GASCHY","DAMIEN","GASCHY DAMIEN","160307 X","LOUVIERS"]
[null,null,null,null,null,null,null,null,null,null,"GASQUET","ROBERT","GASQUET ROBERT","148277 W","PACY",null,"GASQUET","ROBERT","GASQUET ROBERT","148277 W","PACY"]
[null,null,null,null,null,null,null,null,null,null,"GEORGE","GUY","GEORGE GUY","141280 W","EVREUX",null,"GEORGE","GUY","GEORGE GUY","141280 W","EVREUX"]
[null,null,null,null,null,null,null,null,null,null,"GERARD","JEAN CLAUDE","GERARD JEAN CLAUDE","107052 K","LE HAVRE",null,"GERARD","JEAN CLAUDE","GERARD JEAN CLAUDE","107052 K","LE HAVRE"]
[null,null,null,null,null,null,null,null,null,null,"GERMAIN","CYRILLE","GERMAIN CYRILLE","017461 P","BERNAY",null,"GERMAIN","CYRILLE","GERMAIN CYRILLE","017461 P","BERNAY"]
[null,null,null,null,null,null,null,null,null,null,"GERVAIS","PHILIPPE","GERVAIS PHILIPPE","152579 X","CANY-BARVILLE",null,"GERVAIS","PHILIPPE","GERVAIS PHILIPPE","152579 X","CANY-BARVILLE"]
[null,null,null,null,null,null,null,null,null,null,"GESTIN","JACQUES","GESTIN JACQUES","154536 Z","LISIEUX",null,"GESTIN","JACQUES","GESTIN JACQUES","154536 Z","LISIEUX"]
[null,null,null,null,null,null,null,null,null,null,"GEYER","SERGE",{"$f":"CONCATENATE(K181,\" \",L181)","v":"GEYER SERGE"},"017687 H","Saint MARCEL",null,"GEYER","SERGE","GEYER SERGE","017687 H","Saint MARCEL"]
[null,null,null,null,null,null,null,null,null,null,"GIBON","HUBERT","GIBON HUBERT","118079 N","EVREUX",null,"GIBON","HUBERT","GIBON HUBERT","118079 N","EVREUX"]
[null,null,null,null,null,null,null,null,null,null,"GNOCCHI","GIANPAOLO","GNOCCHI GIANPAOLO","124614 W","SOTTEVILLE",null,"GNOCCHI","GIANPAOLO","GNOCCHI GIANPAOLO","124614 W","SOTTEVILLE"]
[null,null,null,null,null,null,null,null,null,null,"GODILLE","SYLVAIN","GODILLE SYLVAIN","126213 J","CORMELLES",null,"GODILLE","SYLVAIN","GODILLE SYLVAIN","126213 J","CORMELLES"]
[null,null,null,null,null,null,null,null,null,null,"GONZALES","JOSE","GONZALES JOSE","107057 P","CORMELLES",null,"GONZALES","JOSE","GONZALES JOSE","107057 P","CORMELLES"]
[null,null,null,null,null,null,null,null,null,null,"GOUDIER","DANIELLE","GOUDIER DANIELLE","137446 K","LISIEUX",null,"GOUDIER","DANIELLE","GOUDIER DANIELLE","137446 K","LISIEUX"]
[null,null,null,null,null,null,null,null,null,null,"GOULAMOUGAIDINE","BASIAH","GOULAMOUGAIDINE BASIAH","129090 A","LOUVIERS",null,"GOULAMOUGAIDINE","BASIAH","GOULAMOUGAIDINE BASIAH","129090 A","LOUVIERS"]
[null,null,null,null,null,null,null,null,null,null,"GOURSAUD","JEAN CLAUDE","GOURSAUD JEAN CLAUDE","143287 B","Saint MARCEL",null,"GOURSAUD","JEAN CLAUDE","GOURSAUD JEAN CLAUDE","143287 B","Saint MARCEL"]
[null,null,null,null,null,null,null,null,null,null,"GOUSSETIS","GEORGES","GOUSSETIS GEORGES","112008 A","ROUEN",null,"GOUSSETIS","GEORGES","GOUSSETIS GEORGES","112008 A","ROUEN"]
[null,null,null,null,null,null,null,null,null,null,"GRANDSIRE","ALAIN","GRANDSIRE ALAIN","158946 S","OISSEL",null,"GRANDSIRE","ALAIN","GRANDSIRE ALAIN","158946 S","OISSEL"]
[null,null,null,null,null,null,null,null,null,null,"GRASSIN","MICHEL","GRASSIN MICHEL","143290 E","EVREUX",null,"GRASSIN","MICHEL","GRASSIN MICHEL","143290 E","EVREUX"]
[null,null,null,null,null,null,null,null,null,null,"GRAZIANI","SEBASTIEN","GRAZIANI SEBASTIEN","162966 M","EVREUX",null,"GRAZIANI","SEBASTIEN","GRAZIANI SEBASTIEN","162966 M","EVREUX"]
[null,null,null,null,null,null,null,null,null,null,"GRENU","GUY","GRENU GUY","156138 Q","SOTTEVILLE",null,"GRENU","GUY","GRENU GUY","156138 Q","SOTTEVILLE"]
[null,null,null,null,null,null,null,null,null,null,"GRICOURT","MARCEL","GRICOURT MARCEL","144380 C","LOUVIERS",null,"GRICOURT","MARCEL","GRICOURT MARCEL","144380 C","LOUVIERS"]
[null,null,null,null,null,null,null,null,null,null,"GROSDEMANGE","JULIEN","GROSDEMANGE JULIEN","144620 I","Saint NICOLAS",null,"GROSDEMANGE","JULIEN",{"$f":"CONCATENATE(Q195,\" \",R195)","v":"GROSDEMANGE JULIEN"},"144620 I","Saint NICOLAS"]
[null,null,null,null,null,null,null,null,null,null,"GUERET","GERARD","GUERET GERARD","018138 Q","SOTTEVILLE",null,"GUERET","GERARD","GUERET GERARD","018138 Q","SOTTEVILLE"]
[null,null,null,null,null,null,null,null,null,null,"GUERIN","DAVID","GUERIN DAVID","017939 Z","ROUEN",null,"GUERIN","DAVID","GUERIN DAVID","017939 Z","ROUEN"]
[null,null,null,null,null,null,null,null,null,null,"GUEROULT","DOMINIQUE","GUEROULT DOMINIQUE","157731 X","SOTTEVILLE",null,"GUEROULT","DOMINIQUE","GUEROULT DOMINIQUE","157731 X","SOTTEVILLE"]
[null,null,null,null,null,null,null,null,null,null,"GUERPIN","BERNARD","GUERPIN BERNARD","133482 Y","CANY-BARVILLE",null,"GUERPIN","BERNARD","GUERPIN BERNARD","133482 Y","CANY-BARVILLE"]
[null,null,null,null,null,null,null,null,null,null,"GUIGNON","ERIC","GUIGNON ERIC","017536 M","Saint NICOLAS",null,"GUIGNON","ERIC","GUIGNON ERIC","017536 M","Saint NICOLAS"]
[null,null,null,null,null,null,null,null,null,null,"GUIGNON","JIM","GUIGNON JIM","017537 N","Saint NICOLAS",null,"GUIGNON","JIM","GUIGNON JIM","017537 N","Saint NICOLAS"]
[null,null,null,null,null,null,null,null,null,null,"GUYADER","ERWAN","GUYADER ERWAN","152484 T","EVREUX",null,"GUYADER","ERWAN","GUYADER ERWAN","152484 T","EVREUX"]
[null,null,null,null,null,null,null,null,null,null,"GUYADER","GAEL","GUYADER GAEL","017653 Z","EVREUX",null,"GUYADER","GAEL","GUYADER GAEL","017653 Z","EVREUX"]
[null,null,null,null,null,null,null,null,null,null,"GUYADER","SOPHIE","GUYADER SOPHIE","141281 X","EVREUX",null,"GUYADER","SOPHIE","GUYADER SOPHIE","141281 X","EVREUX"]
[null,null,null,null,null,null,null,null,null,null,"HAFED","LAURENT","HAFED LAURENT","116626 Q","CORMELLES",null,"HAFED","LAURENT","HAFED LAURENT","116626 Q","CORMELLES"]
[null,null,null,null,null,null,null,null,null,null,"HAUBERDON","RENE",{"$f":"CONCATENATE(K206,\" \",L206)","v":"HAUBERDON RENE"},"140340 S","FÉCAMP",null,"HAUBERDON","RENE","HAUBERDON RENE","140340 S","FÉCAMP"]
[null,null,null,null,null,null,null,null,null,null,"HAZART HAMEL","GERARD","HAZART HAMEL GERARD","134863 B","SOTTEVILLE",null,"HAZART HAMEL","GERARD","HAZART HAMEL GERARD","134863 B","SOTTEVILLE"]
[null,null,null,null,null,null,null,null,null,null,"HEBERT","YVAN","HEBERT YVAN","118088 W","SOTTEVILLE",null,"HEBERT","YVAN","HEBERT YVAN","118088 W","SOTTEVILLE"]
[null,null,null,null,null,null,null,null,null,null,"HEMPEL","JEAN","HEMPEL JEAN","017748 Q","LOUVIERS",null,"HEMPEL","JEAN","HEMPEL JEAN","017748 Q","LOUVIERS"]
[null,null,null,null,null,null,null,null,null,null,"HENRY","CATHERINE","HENRY CATHERINE","156840 D","LE HAVRE",null,"HENRY","CATHERINE","HENRY CATHERINE","156840 D","LE HAVRE"]
[null,null,null,null,null,null,null,null,null,null,"HENRY","SERGE","HENRY SERGE","017637 J","LE HAVRE",null,"HENRY","SERGE","HENRY SERGE","017637 J","LE HAVRE"]
[null,null,null,null,null,null,null,null,null,null,"HINTZY","ERIC","HINTZY ERIC","150245 K","LA SAUSSAYE",null,"HINTZY","ERIC","HINTZY ERIC","150245 K","LA SAUSSAYE"]
[null,null,null,null,null,null,null,null,null,null,"HONDIER","REMY","HONDIER REMY","156765 X","ROUEN",null,"HONDIER","REMY","HONDIER REMY","156765 X","ROUEN"]
[null,null,null,null,null,null,null,null,null,null,"HORCHOLLES","DAVID","HORCHOLLES DAVID","018123 B","GAILLON",null,"HORCHOLLES","DAVID","HORCHOLLES DAVID","018123 B","GAILLON"]
[null,null,null,null,null,null,null,null,null,null,"HOUILLEZ","MATHIS","HOUILLEZ MATHIS","158948 V","SOTTEVILLE",null,"HOUILLEZ","MATHIS","HOUILLEZ MATHIS","158948 V","SOTTEVILLE"]
[null,null,null,null,null,null,null,null,null,null,"HUBERT","YVON","HUBERT YVON","161713 A","CANY-BARVILLE",null,"HUBERT","YVON","HUBERT YVON","161713 A","CANY-BARVILLE"]
[null,null,null,null,null,null,null,null,null,null,"HUE","JEAN","HUE JEAN","140475 X","CORMELLES",null,"HUE","JEAN","HUE JEAN","140475 X","CORMELLES"]
[null,null,null,null,null,null,null,null,null,null,"HUGER","MICHEL","HUGER MICHEL","017614 M","LA SAUSSAYE",null,"HUGER","MICHEL","HUGER MICHEL","017614 M","LA SAUSSAYE"]
[null,null,null,null,null,null,null,null,null,null,"HUTINET","DANIEL","HUTINET DANIEL","017724 S","EVREUX",null,"HUTINET","DANIEL","HUTINET DANIEL","017724 S","EVREUX"]
[null,null,null,null,null,null,null,null,null,null,"IPPOLITO","PASCAL","IPPOLITO PASCAL","018041 X","SOTTEVILLE",null,"IPPOLITO","PASCAL","IPPOLITO PASCAL","018041 X","SOTTEVILLE"]
[null,null,null,null,null,null,null,null,null,null,"JACA","BERNARD","JACA BERNARD","159687 Y","GAILLON",null,"JACA","BERNARD","JACA BERNARD","159687 Y","GAILLON"]
[null,null,null,null,null,null,null,null,null,null,"JACQ","LAURENT","JACQ LAURENT","017912 Y","ROUEN",null,"JACQ","LAURENT","JACQ LAURENT","017912 Y","ROUEN"]
[null,null,null,null,null,null,null,null,null,null,"JANOSKA","CHRISTIAN","JANOSKA CHRISTIAN","100587 T","CANY-BARVILLE",null,"JANOSKA","CHRISTIAN","JANOSKA CHRISTIAN","100587 T","CANY-BARVILLE"]
[null,null,null,null,null,null,null,null,null,null,"JASPERS","DICK","JASPERS DICK","117778 Y","ROUEN",null,"JASPERS","DICK","JASPERS DICK","117778 Y","ROUEN"]
[null,null,null,null,null,null,null,null,null,null,"JOUSSE","JACKY","JOUSSE JACKY","149573 E","BERNAY",null,"JOUSSE","JACKY","JOUSSE JACKY","149573 E","BERNAY"]
[null,null,null,null,null,null,null,null,null,null,"JUBLOT","DENIS","JUBLOT DENIS","017978 M","ROUEN",null,"JUBLOT","DENIS","JUBLOT DENIS","017978 M","ROUEN"]
[null,null,null,null,null,null,null,null,null,null,"JUBLOT","MAXIME","JUBLOT MAXIME","107058 Q","ROUEN",null,"JUBLOT","MAXIME","JUBLOT MAXIME","107058 Q","ROUEN"]
[null,null,null,null,null,null,null,null,null,null,"KENZEY","PATRICK","KENZEY PATRICK","017485 N","EVREUX",null,"KENZEY","PATRICK","KENZEY PATRICK","017485 N","EVREUX"]
[null,null,null,null,null,null,null,null,null,null,"LAINE","ALAIN","LAINE ALAIN","125063 D","LE HAVRE",null,"LAINE","ALAIN","LAINE ALAIN","125063 D","LE HAVRE"]
[null,null,null,null,null,null,null,null,null,null,"LANGEVIN","LAURENT","LANGEVIN LAURENT","017728 W","CORMELLES",null,"LANGEVIN","LAURENT","LANGEVIN LAURENT","017728 W","CORMELLES"]
[null,null,null,null,null,null,null,null,null,null,"LANGLOIS","MARC","LANGLOIS MARC","138567 N","CORMELLES",null,"LANGLOIS","MARC","LANGLOIS MARC","138567 N","CORMELLES"]
[null,null,null,null,null,null,null,null,null,null,"LANGLOIS","CHRISTIAN","LANGLOIS CHRISTIAN","018105 J","LE HAVRE",null,"LANGLOIS","CHRISTIAN","LANGLOIS CHRISTIAN","018105 J","LE HAVRE"]
[null,null,null,null,null,null,null,null,null,null,"LANGLOIS","FLORIAN","LANGLOIS FLORIAN","159970 F","LE HAVRE",null,"LANGLOIS","FLORIAN","LANGLOIS FLORIAN","159970 F","LE HAVRE"]
[null,null,null,null,null,null,null,null,null,null,"LANGRAND","BERTRAND","LANGRAND BERTRAND","163072 C","CORMELLES",null,"LANGRAND","BERTRAND","LANGRAND BERTRAND","163072 C","CORMELLES"]
[null,null,null,null,null,null,null,null,null,null,"LATEYRON","DIDIER","LATEYRON DIDIER","011465 Z","LOUVIERS",null,"LATEYRON","DIDIER","LATEYRON DIDIER","011465 Z","LOUVIERS"]
[null,null,null,null,null,null,null,null,null,null,"LAURENT","PHILIPPE","LAURENT PHILIPPE","112307 N","LOUVIERS",null,"LAURENT","PHILIPPE","LAURENT PHILIPPE","112307 N","LOUVIERS"]
[null,null,null,null,null,null,null,null,null,null,"LAURENT","VALERY","LAURENT VALERY","017732 A","ROUEN",null,"LAURENT","VALERY","LAURENT VALERY","017732 A","ROUEN"]
[null,null,null,null,null,null,null,null,null,null,"LE BLEY","JEAN PIERRE","LE BLEY JEAN PIERRE","162773 C","CORMELLES",null,"LE BLEY","JEAN PIERRE","LE BLEY JEAN PIERRE","162773 C","CORMELLES"]
[null,null,null,null,null,null,null,null,null,null,"LE CAER","THIERRY","LE CAER THIERRY","129144 C","Les ANDELYS",null,"LE CAER","THIERRY","LE CAER THIERRY","129144 C","Les ANDELYS"]
[null,null,null,null,null,null,null,null,null,null,"LE GALL","PATRICK","LE GALL PATRICK","156766 Y","ROUEN",null,"LE GALL","PATRICK","LE GALL PATRICK","156766 Y","ROUEN"]
[null,null,null,null,null,null,null,null,null,null,"LE LOUARN","JEAN CLAUDE","LE LOUARN JEAN CLAUDE","144162 S","LE HAVRE",null,"LE LOUARN","JEAN CLAUDE","LE LOUARN JEAN CLAUDE","144162 S","LE HAVRE"]
[null,null,null,null,null,null,null,null,null,null,"LE MOULEC","ALAIN","LE MOULEC ALAIN","135751 F","LE HAVRE",null,"LE MOULEC","ALAIN","LE MOULEC ALAIN","135751 F","LE HAVRE"]
[null,null,null,null,null,null,null,null,null,null,"LE MOULEC","JOHNNY","LE MOULEC JOHNNY","135752 G","LE HAVRE",null,"LE MOULEC","JOHNNY","LE MOULEC JOHNNY","135752 G","LE HAVRE"]
[null,null,null,null,null,null,null,null,null,null,"LE QUEC","TOM","LE QUEC TOM","162656 A","LE HAVRE",null,"LE QUEC","TOM","LE QUEC TOM","162656 A","LE HAVRE"]
[null,null,null,null,null,null,null,null,null,null,"LE RAILLER","GERALD","LE RAILLER GERALD","151478 A","Saint NICOLAS",null,"LE RAILLER","GERALD","LE RAILLER GERALD","151478 A","Saint NICOLAS"]
[null,null,null,null,null,null,null,null,null,null,"LE SELLIN","DANIEL","LE SELLIN DANIEL","017576 A","Saint NICOLAS",null,"LE SELLIN","DANIEL","LE SELLIN DANIEL","017576 A","Saint NICOLAS"]
[null,null,null,null,null,null,null,null,null,null,"LEBEGUE","JEAN","LEBEGUE JEAN","157910 R","CORMELLES",null,"LEBEGUE","JEAN","LEBEGUE JEAN","157910 R","CORMELLES"]
[null,null,null,null,null,null,null,null,null,null,"LEBLOND","MATHIEU","LEBLOND MATHIEU","162885 Z","OISSEL",null,"LEBLOND","MATHIEU","LEBLOND MATHIEU","162885 Z","OISSEL"]
[null,null,null,null,null,null,null,null,null,null,"LEBOUCHER","PASCAL","LEBOUCHER PASCAL","126223 T","LE HAVRE",null,"LEBOUCHER","PASCAL","LEBOUCHER PASCAL","126223 T","LE HAVRE"]
[null,null,null,null,null,null,null,null,null,null,"LEBOURG","RACHELLE","LEBOURG RACHELLE","162808 Q","CANY-BARVILLE",null,"LEBOURG","RACHELLE","LEBOURG RACHELLE","162808 Q","CANY-BARVILLE"]
[null,null,null,null,null,null,null,null,null,null,"LEBOURGEOIS","PHILIPPE","LEBOURGEOIS PHILIPPE","017763 F","ROUEN",null,"LEBOURGEOIS","PHILIPPE","LEBOURGEOIS PHILIPPE","017763 F","ROUEN"]
[null,null,null,null,null,null,null,null,null,null,"LEBOUTEILLER","MARCEL","LEBOUTEILLER MARCEL","152787 Y","ARGENCES",null,"LEBOUTEILLER","MARCEL","LEBOUTEILLER MARCEL","152787 Y","ARGENCES"]
[null,null,null,null,null,null,null,null,null,null,"LEBRETON","ALAIN","LEBRETON ALAIN","013523 D","LISIEUX",null,"LEBRETON","ALAIN","LEBRETON ALAIN","013523 D","LISIEUX"]
[null,null,null,null,null,null,null,null,null,null,"LECAVELIER DESETANGS","ENZO","LECAVELIER DESETANGS ENZO","158945 R","OISSEL",null,"LECAVELIER DESETANGS","ENZO","LECAVELIER DESETANGS ENZO","158945 R","OISSEL"]
[null,null,null,null,null,null,null,null,null,null,"LECAVELIER DESETANGS","ERIC","LECAVELIER DESETANGS ERIC","159884 M","OISSEL",null,"LECAVELIER DESETANGS","ERIC","LECAVELIER DESETANGS ERIC","159884 M","OISSEL"]
[null,null,null,null,null,null,null,null,null,null,"LEFEBVRE","PIERRE","LEFEBVRE PIERRE","138763 B","EVREUX",null,"LEFEBVRE","PIERRE","LEFEBVRE PIERRE","138763 B","EVREUX"]
[null,null,null,null,null,null,null,null,null,null,"LEFEBVRE","RENE","LEFEBVRE RENE","017752 U","ROUEN",null,"LEFEBVRE","RENE","LEFEBVRE RENE","017752 U","ROUEN"]
[null,null,null,null,null,null,null,null,null,null,"LEFEVRE","PHILIPPE","LEFEVRE PHILIPPE","017875 N","ARGENCES",null,"LEFEVRE","PHILIPPE","LEFEVRE PHILIPPE","017875 N","ARGENCES"]
[null,null,null,null,null,null,null,null,null,null,"LEFEVRE","YANNICK","LEFEVRE YANNICK","147057 V","LISIEUX",null,"LEFEVRE","YANNICK",{"$f":"CONCATENATE(Q259,\" \",R259)","v":"LEFEVRE YANNICK"},"147057 V","LISIEUX"]
[null,null,null,null,null,null,null,null,null,null,"LEGAGNEUR","PATRICK","LEGAGNEUR PATRICK","163266 N","SOTTEVILLE",null,"LEGAGNEUR","PATRICK","LEGAGNEUR PATRICK","163266 N","SOTTEVILLE"]
[null,null,null,null,null,null,null,null,null,null,"LEGAZPI","RUBEN","LEGAZPI RUBEN","155577 F","ROUEN",null,"LEGAZPI","RUBEN","LEGAZPI RUBEN","155577 F","ROUEN"]
[null,null,null,null,null,null,null,null,null,null,"LEGENDRE","CEDRIC","LEGENDRE CEDRIC","011123 V","ROUEN",null,"LEGENDRE","CEDRIC","LEGENDRE CEDRIC","011123 V","ROUEN"]
[null,null,null,null,null,null,null,null,null,null,"LEGENDRE","CHARLES","LEGENDRE CHARLES","153994 K","ROUEN",null,"LEGENDRE","CHARLES","LEGENDRE CHARLES","153994 K","ROUEN"]
[null,null,null,null,null,null,null,null,null,null,"LEGENDRE","NATHAN","LEGENDRE NATHAN","148558 B","ROUEN",null,"LEGENDRE","NATHAN","LEGENDRE NATHAN","148558 B","ROUEN"]
[null,null,null,null,null,null,null,null,null,null,"LEGENDRE","GERARD","LEGENDRE GERARD","131482 A","Saint NICOLAS",null,"LEGENDRE","GERARD","LEGENDRE GERARD","131482 A","Saint NICOLAS"]
[null,null,null,null,null,null,null,null,null,null,"LEGRET","ALEXIAN","LEGRET ALEXIAN","144318 S","CORMELLES",null,"LEGRET","ALEXIAN","LEGRET ALEXIAN","144318 S","CORMELLES"]
[null,null,null,null,null,null,null,null,null,null,"LEGROS","JACKIE","LEGROS JACKIE","141622 A","SOTTEVILLE",null,"LEGROS","JACKIE","LEGROS JACKIE","141622 A","SOTTEVILLE"]
[null,null,null,null,null,null,null,null,null,null,"LEHARIVEL","DENIS","LEHARIVEL DENIS","124649 F","CORMELLES",null,"LEHARIVEL","DENIS","LEHARIVEL DENIS","124649 F","CORMELLES"]
[null,null,null,null,null,null,null,null,null,null,"LEHERICEY","ALAIN","LEHERICEY ALAIN","158401 A","LISIEUX",null,"LEHERICEY","ALAIN","LEHERICEY ALAIN","158401 A","LISIEUX"]
[null,null,null,null,null,null,null,null,null,null,"LELEVRIER","MICHEL",{"$f":"CONCATENATE(K270,\" \",L270)","v":"LELEVRIER MICHEL"},"153100 N","LOUVIERS",null,"LELEVRIER","MICHEL","LELEVRIER MICHEL","153100 N","LOUVIERS"]
[null,null,null,null,null,null,null,null,null,null,"LELLI","CHARLES","LELLI CHARLES","104742 O","CANY-BARVILLE",null,"LELLI","CHARLES","LELLI CHARLES","104742 O","CANY-BARVILLE"]
[null,null,null,null,null,null,null,null,null,null,"LELOIR","MICHEL","LELOIR MICHEL","017997 F","Saint NICOLAS",null,"LELOIR","MICHEL","LELOIR MICHEL","017997 F","Saint NICOLAS"]
[null,null,null,null,null,null,null,null,null,null,"LEMARCHAND","BERNARD","LEMARCHAND BERNARD","162573 K","LISIEUX",null,"LEMARCHAND","BERNARD","LEMARCHAND BERNARD","162573 K","LISIEUX"]
[null,null,null,null,null,null,null,null,null,null,"LEMOIGNE","PIERRE","LEMOIGNE PIERRE","127747 J","PACY",null,"LEMOIGNE","PIERRE","LEMOIGNE PIERRE","127747 J","PACY"]
[null,null,null,null,null,null,null,null,null,null,"LENEVEU","PATRICK","LENEVEU PATRICK","161297 Y","CANY-BARVILLE",null,"LENEVEU","PATRICK","LENEVEU PATRICK","161297 Y","CANY-BARVILLE"]
[null,null,null,null,null,null,null,null,null,null,"LEPINAY","PIERRE","LEPINAY PIERRE","017597 V","LISIEUX",null,"LEPINAY","PIERRE","LEPINAY PIERRE","017597 V","LISIEUX"]
[null,null,null,null,null,null,null,null,null,null,"LEPORQ","FRANCOIS","LEPORQ FRANCOIS","131887 P","LE HAVRE",null,"LEPORQ","FRANCOIS","LEPORQ FRANCOIS","131887 P","LE HAVRE"]
[null,null,null,null,null,null,null,null,null,null,"LESCAN","JACQUES","LESCAN JACQUES","138167 D","SOTTEVILLE",null,"LESCAN","JACQUES","LESCAN JACQUES","138167 D","SOTTEVILLE"]
[null,null,null,null,null,null,null,null,null,null,"LESELLIER","PASCAL","LESELLIER PASCAL","017786 C","CORMELLES",null,"LESELLIER","PASCAL","LESELLIER PASCAL","017786 C","CORMELLES"]
[null,null,null,null,null,null,null,null,null,null,"LETELLIER","JEAN CLAUDE","LETELLIER JEAN CLAUDE","145084 E","EVREUX",null,"LETELLIER","JEAN CLAUDE","LETELLIER JEAN CLAUDE","145084 E","EVREUX"]
[null,null,null,null,null,null,null,null,null,null,"LETOURNEUR","ALAIN","LETOURNEUR ALAIN","133469 L","Saint MARCEL",null,"LETOURNEUR","ALAIN","LETOURNEUR ALAIN","133469 L","Saint MARCEL"]
[null,null,null,null,null,null,null,null,null,null,"LETRESOR","MAURICE","LETRESOR MAURICE","116603 T","ARGENCES",null,"LETRESOR","MAURICE","LETRESOR MAURICE","116603 T","ARGENCES"]
[null,null,null,null,null,null,null,null,null,null,"LETULLIER","BRUNO","LETULLIER BRUNO","135753 H","LE HAVRE",null,"LETULLIER","BRUNO","LETULLIER BRUNO","135753 H","LE HAVRE"]
[null,null,null,null,null,null,null,null,null,null,"LEVILLAIN","EVELYNE","LEVILLAIN EVELYNE","142974 A","SOTTEVILLE",null,"LEVILLAIN","EVELYNE","LEVILLAIN EVELYNE","142974 A","SOTTEVILLE"]
[null,null,null,null,null,null,null,null,null,null,"LHEUREUX","RICHARD","LHEUREUX RICHARD","133458 A","LA SAUSSAYE",null,"LHEUREUX","RICHARD","LHEUREUX RICHARD","133458 A","LA SAUSSAYE"]
[null,null,null,null,null,null,null,null,null,null,"LIARD","BERNARD","LIARD BERNARD","106833 Z","CORMELLES",null,"LIARD","BERNARD","LIARD BERNARD","106833 Z","CORMELLES"]
[null,null,null,null,null,null,null,null,null,null,"LIBERT","LOUIS PIERRE","LIBERT LOUIS PIERRE","147566 Y","CANY-BARVILLE",null,"LIBERT","LOUIS PIERRE","LIBERT LOUIS PIERRE","147566 Y","CANY-BARVILLE"]
[null,null,null,null,null,null,null,null,null,null,"LING","BENJAMIN","LING BENJAMIN","162981 D","Saint MARCEL",null,"LING","BENJAMIN","LING BENJAMIN","162981 D","Saint MARCEL"]
[null,null,null,null,null,null,null,null,null,null,"LINGRAND","BERNARD","LINGRAND BERNARD","162572 J","LISIEUX",null,"LINGRAND","BERNARD","LINGRAND BERNARD","162572 J","LISIEUX"]
[null,null,null,null,null,null,null,null,null,null,"LOMBARD","PATRICK","LOMBARD PATRICK","142975 B","SOTTEVILLE",null,"LOMBARD","PATRICK","LOMBARD PATRICK","142975 B","SOTTEVILLE"]
[null,null,null,null,null,null,null,null,null,null,"LOPEZ","HENRI","LOPEZ HENRI","100524 I","CORMELLES",null,"LOPEZ","HENRI","LOPEZ HENRI","100524 I","CORMELLES"]
[null,null,null,null,null,null,null,null,null,null,"LORGET","EMMANUEL","LORGET EMMANUEL","144781 N","BERNAY",null,"LORGET","EMMANUEL","LORGET EMMANUEL","144781 N","BERNAY"]
[null,null,null,null,null,null,null,null,null,null,"LOURSEL","ALAIN","LOURSEL ALAIN","017731 Z","ROUEN",null,"LOURSEL","ALAIN","LOURSEL ALAIN","017731 Z","ROUEN"]
[null,null,null,null,null,null,null,null,null,null,"MAGNAN","JEAN LUC","MAGNAN JEAN LUC","018043 Z","LA SAUSSAYE",null,"MAGNAN","JEAN LUC","MAGNAN JEAN LUC","018043 Z","LA SAUSSAYE"]
[null,null,null,null,null,null,null,null,null,null,"MAHEUT","ALEXANDRE","MAHEUT ALEXANDRE","160531 Q","FÉCAMP",null,"MAHEUT","ALEXANDRE","MAHEUT ALEXANDRE","160531 Q","FÉCAMP"]
[null,null,null,null,null,null,null,null,null,null,"MAHIEU","NORBERT","MAHIEU NORBERT","122711 R","OISSEL",null,"MAHIEU","NORBERT","MAHIEU NORBERT","122711 R","OISSEL"]
[null,null,null,null,null,null,null,null,null,null,"MAISON","MICHEL","MAISON MICHEL","150113 R","SOTTEVILLE",null,"MAISON","MICHEL","MAISON MICHEL","150113 R","SOTTEVILLE"]
[null,null,null,null,null,null,null,null,null,null,"MALLET","PHILIPPE","MALLET PHILIPPE","150883 D","Saint MARCEL",null,"MALLET","PHILIPPE","MALLET PHILIPPE","150883 D","Saint MARCEL"]
[null,null,null,null,null,null,null,null,null,null,"MARGERIE","JEAN","MARGERIE JEAN","160956 C","ROUEN",null,"MARGERIE","JEAN","MARGERIE JEAN","160956 C","ROUEN"]
[null,null,null,null,null,null,null,null,null,null,"MARLIN","JEAN PIERRE","MARLIN JEAN PIERRE","018044 A","SOTTEVILLE",null,"MARLIN","JEAN PIERRE","MARLIN JEAN PIERRE","018044 A","SOTTEVILLE"]
[null,null,null,null,null,null,null,null,null,null,"MARRE","JEAN CLAUDE","MARRE JEAN CLAUDE","018002 K","CORMELLES",null,"MARRE","JEAN CLAUDE","MARRE JEAN CLAUDE","018002 K","CORMELLES"]
[null,null,null,null,null,null,null,null,null,null,"MARTINS","JOSE BRAZ","MARTINS JOSE BRAZ","154240 C","ROUEN",null,"MARTINS","JOSE BRAZ","MARTINS JOSE BRAZ","154240 C","ROUEN"]
[null,null,null,null,null,null,null,null,null,null,"MARTINY","JOSEPH","MARTINY JOSEPH","102206 A","CANY-BARVILLE",null,"MARTINY","JOSEPH","MARTINY JOSEPH","102206 A","CANY-BARVILLE"]
[null,null,null,null,null,null,null,null,null,null,"MARTORY","PASCAL","MARTORY PASCAL","017664 K","OISSEL",null,"MARTORY","PASCAL","MARTORY PASCAL","017664 K","OISSEL"]
[null,null,null,null,null,null,null,null,null,null,"MARTORY","PIERRE","MARTORY PIERRE","144782 O","OISSEL",null,"MARTORY","PIERRE","MARTORY PIERRE","144782 O","OISSEL"]
[null,null,null,null,null,null,null,null,null,null,"MARTORY","SERGE","MARTORY SERGE","017569 T","Saint MARCEL",null,"MARTORY","SERGE","MARTORY SERGE","017569 T","Saint MARCEL"]
[null,null,null,null,null,null,null,null,null,null,"MARY","JEAN CLAUDE","MARY JEAN CLAUDE","153309 Q","BERNAY",null,"MARY","JEAN CLAUDE","MARY JEAN CLAUDE","153309 Q","BERNAY"]
[null,null,null,null,null,null,null,null,null,null,"MASSON","JEAN PIERRE","MASSON JEAN PIERRE","158108 G","LA SAUSSAYE",null,"MASSON","JEAN PIERRE","MASSON JEAN PIERRE","158108 G","LA SAUSSAYE"]
[null,null,null,null,null,null,null,null,null,null,"MATEOS","RAYMOND","MATEOS RAYMOND","126235 F","PACY",null,"MATEOS","RAYMOND","MATEOS RAYMOND","126235 F","PACY"]
[null,null,null,null,null,null,null,null,null,null,"MAUCOLIN","JORDAN","MAUCOLIN JORDAN","119852 S","LA SAUSSAYE",null,"MAUCOLIN","JORDAN","MAUCOLIN JORDAN","119852 S","LA SAUSSAYE"]
[null,null,null,null,null,null,null,null,null,null,"MAUNOURY","LAURENT","MAUNOURY LAURENT","146122 C","CORMELLES",null,"MAUNOURY","LAURENT","MAUNOURY LAURENT","146122 C","CORMELLES"]
[null,null,null,null,null,null,null,null,null,null,"MAUPIN","CHRISTOPHE","MAUPIN CHRISTOPHE","021024 Q","SOTTEVILLE",null,"MAUPIN","CHRISTOPHE","MAUPIN CHRISTOPHE","021024 Q","SOTTEVILLE"]
[null,null,null,null,null,null,null,null,null,null,"MAUREY","SERGE","MAUREY SERGE","131534 A","SOTTEVILLE",null,"MAUREY","SERGE","MAUREY SERGE","131534 A","SOTTEVILLE"]
[null,null,null,null,null,null,null,null,null,null,"MAURICE","JEAN PAUL","MAURICE JEAN PAUL","145858 Y","CANY-BARVILLE",null,"MAURICE","JEAN PAUL","MAURICE JEAN PAUL","145858 Y","CANY-BARVILLE"]
[null,null,null,null,null,null,null,null,null,null,"MAURIN","BERNARD","MAURIN BERNARD","116657 V","Saint MARCEL",null,"MAURIN","BERNARD","MAURIN BERNARD","116657 V","Saint MARCEL"]
[null,null,null,null,null,null,null,null,null,null,"MAYNARD","ALEXANDRE","MAYNARD ALEXANDRE","112015 H","GAILLON",null,"MAYNARD","ALEXANDRE","MAYNARD ALEXANDRE","112015 H","GAILLON"]
[null,null,null,null,null,null,null,null,null,null,"MAZE","JEAN PIERRE","MAZE JEAN PIERRE","137816 Q","LE HAVRE",null,"MAZE","JEAN PIERRE","MAZE JEAN PIERRE","137816 Q","LE HAVRE"]
[null,null,null,null,null,null,null,null,null,null,"MEGNAN","JEAN PIERRE","MEGNAN JEAN PIERRE","133889 P","SOTTEVILLE",null,"MEGNAN","JEAN PIERRE","MEGNAN JEAN PIERRE","133889 P","SOTTEVILLE"]
[null,null,null,null,null,null,null,null,null,null,"MERCET","HUGUES","MERCET HUGUES","017744 M","LE HAVRE",null,"MERCET","HUGUES","MERCET HUGUES","017744 M","LE HAVRE"]
[null,null,null,null,null,null,null,null,null,null,"MERETTE","MICHEL","MERETTE MICHEL","146431 Z","CANY-BARVILLE",null,"MERETTE","MICHEL","MERETTE MICHEL","146431 Z","CANY-BARVILLE"]
[null,null,null,null,null,null,null,null,null,null,"MICHAULT","MARC","MICHAULT MARC","163171 K","LOUVIERS",null,"MICHAULT","MARC","MICHAULT MARC","163171 K","LOUVIERS"]
[null,null,null,null,null,null,null,null,null,null,"MIGA","LAURENT","MIGA LAURENT","149312 W","OISSEL",null,"MIGA","LAURENT","MIGA LAURENT","149312 W","OISSEL"]
[null,null,null,null,null,null,null,null,null,null,"MILLET","DANIEL","MILLET DANIEL","017867 F","OISSEL",null,"MILLET","DANIEL",{"$f":"CONCATENATE(Q323,\" \",R323)","v":"MILLET DANIEL"},"017867 F","OISSEL"]
[null,null,null,null,null,null,null,null,null,null,"MINAULT","JACQUES","MINAULT JACQUES","144302 C","CANY-BARVILLE",null,"MINAULT","JACQUES","MINAULT JACQUES","144302 C","CANY-BARVILLE"]
[null,null,null,null,null,null,null,null,null,null,"MINAULT","MARTINE","MINAULT MARTINE","144303 D","CANY-BARVILLE",null,"MINAULT","MARTINE","MINAULT MARTINE","144303 D","CANY-BARVILLE"]
[null,null,null,null,null,null,null,null,null,null,"MOLINA","CHRISTIAN","MOLINA CHRISTIAN","145457 N","SOTTEVILLE",null,"MOLINA","CHRISTIAN","MOLINA CHRISTIAN","145457 N","SOTTEVILLE"]
[null,null,null,null,null,null,null,null,null,null,"MONTOURCY","MARC","MONTOURCY MARC","120315 N","Saint MARCEL",null,"MONTOURCY","MARC","MONTOURCY MARC","120315 N","Saint MARCEL"]
[null,null,null,null,null,null,null,null,null,null,"MOREL","FRANCIS","MOREL FRANCIS","142932 K","LA SAUSSAYE",null,"MOREL","FRANCIS","MOREL FRANCIS","142932 K","LA SAUSSAYE"]
[null,null,null,null,null,null,null,null,null,null,"MOREL","PATRICE","MOREL PATRICE","138381 J","OISSEL",null,"MOREL","PATRICE","MOREL PATRICE","138381 J","OISSEL"]
[null,null,null,null,null,null,null,null,null,null,"MORENO","CHRISTIAN","MORENO CHRISTIAN","017483 L","EVREUX",null,"MORENO","CHRISTIAN","MORENO CHRISTIAN","017483 L","EVREUX"]
[null,null,null,null,null,null,null,null,null,null,"MOULIN","DANIEL","MOULIN DANIEL","159291 S","CORMELLES",null,"MOULIN","DANIEL","MOULIN DANIEL","159291 S","CORMELLES"]
[null,null,null,null,null,null,null,null,null,null,"MUGUET","ROBERT","MUGUET ROBERT","017616 O","LA SAUSSAYE",null,"MUGUET","ROBERT","MUGUET ROBERT","017616 O","LA SAUSSAYE"]
[null,null,null,null,null,null,null,null,null,null,"MULLER","THEOPHILE","MULLER THEOPHILE","116619 J","CANY-BARVILLE",null,"MULLER","THEOPHILE","MULLER THEOPHILE","116619 J","CANY-BARVILLE"]
[null,null,null,null,null,null,null,null,null,null,"NEVEU","ADRIEN",{"$f":"CONCATENATE(K334,\" \",L334)","v":"NEVEU ADRIEN"},"152834 Z","SOTTEVILLE",null,"NEVEU","ADRIEN","NEVEU ADRIEN","152834 Z","SOTTEVILLE"]
[null,null,null,null,null,null,null,null,null,null,"NICOLAS","REMY","NICOLAS REMY","160828 N","ROUEN",null,"NICOLAS","REMY","NICOLAS REMY","160828 N","ROUEN"]
[null,null,null,null,null,null,null,null,null,null,"NOTHEAUX","JACQUES","NOTHEAUX JACQUES","157733 Z","SOTTEVILLE",null,"NOTHEAUX","JACQUES","NOTHEAUX JACQUES","157733 Z","SOTTEVILLE"]
[null,null,null,null,null,null,null,null,null,null,"NOWAK","MICHAEL","NOWAK MICHAEL","017827 R","LA SAUSSAYE",null,"NOWAK","MICHAEL","NOWAK MICHAEL","017827 R","LA SAUSSAYE"]
[null,null,null,null,null,null,null,null,null,null,"ODOUX","PHILIPPE","ODOUX PHILIPPE","142635 Z","CANY-BARVILLE",null,"ODOUX","PHILIPPE","ODOUX PHILIPPE","142635 Z","CANY-BARVILLE"]
[null,null,null,null,null,null,null,null,null,null,"PAJON","MARIE PIERRE","PAJON MARIE PIERRE","150068 S","Saint MARCEL",null,"PAJON","MARIE PIERRE","PAJON MARIE PIERRE","150068 S","Saint MARCEL"]
[null,null,null,null,null,null,null,null,null,null,"PALAZON","JAVIER","PALAZON JAVIER","155576 E","ROUEN",null,"PALAZON","JAVIER","PALAZON JAVIER","155576 E","ROUEN"]
[null,null,null,null,null,null,null,null,null,null,"PARMENTIER","FRANC","PARMENTIER FRANC","017477 F","LA SAUSSAYE",null,"PARMENTIER","FRANC","PARMENTIER FRANC","017477 F","LA SAUSSAYE"]
[null,null,null,null,null,null,null,null,null,null,"PAULIN","GERARD","PAULIN GERARD","158426 C","Saint MARCEL",null,"PAULIN","GERARD","PAULIN GERARD","158426 C","Saint MARCEL"]
[null,null,null,null,null,null,null,null,null,null,"PELTIER","JACQUES","PELTIER JACQUES","134860 Y","BERNAY",null,"PELTIER","JACQUES","PELTIER JACQUES","134860 Y","BERNAY"]
[null,null,null,null,null,null,null,null,null,null,"PERCHEY","LOUIS","PERCHEY LOUIS","017518 U","SOTTEVILLE",null,"PERCHEY","LOUIS","PERCHEY LOUIS","017518 U","SOTTEVILLE"]
[null,null,null,null,null,null,null,null,null,null,"PERDRIAU","DANIEL","PERDRIAU DANIEL","138442 S","ROUEN",null,"PERDRIAU","DANIEL","PERDRIAU DANIEL","138442 S","ROUEN"]
[null,null,null,null,null,null,null,null,null,null,"PERIER","ANTONIO","PERIER ANTONIO","162996 V","OISSEL",null,"PERIER","ANTONIO","PERIER ANTONIO","162996 V","OISSEL"]
[null,null,null,null,null,null,null,null,null,null,"PERRIER","JEAN","PERRIER JEAN","017694 O","FÉCAMP",null,"PERRIER","JEAN","PERRIER JEAN","017694 O","FÉCAMP"]
[null,null,null,null,null,null,null,null,null,null,"PERROT","JACKY","PERROT JACKY","152580 Y","CANY-BARVILLE",null,"PERROT","JACKY","PERROT JACKY","152580 Y","CANY-BARVILLE"]
[null,null,null,null,null,null,null,null,null,null,"PESLIN","RICHARD","PESLIN RICHARD","017858 W","LISIEUX",null,"PESLIN","RICHARD","PESLIN RICHARD","017858 W","LISIEUX"]
[null,null,null,null,null,null,null,null,null,null,"PETIT","JOHANN","PETIT JOHANN","017604 C","OISSEL",null,"PETIT","JOHANN","PETIT JOHANN","017604 C","OISSEL"]
[null,null,null,null,null,null,null,null,null,null,"PETIT","JEAN CLAUDE","PETIT JEAN CLAUDE","124014 U","Saint MARCEL",null,"PETIT","JEAN CLAUDE","PETIT JEAN CLAUDE","124014 U","Saint MARCEL"]
[null,null,null,null,null,null,null,null,null,null,"PETIT","JEAN","PETIT JEAN","122166 S","SOTTEVILLE",null,"PETIT","JEAN","PETIT JEAN","122166 S","SOTTEVILLE"]
[null,null,null,null,null,null,null,null,null,null,"PHILIPPE","JEAN","PHILIPPE JEAN","149830 J","ROUEN",null,"PHILIPPE","JEAN","PHILIPPE JEAN","149830 J","ROUEN"]
[null,null,null,null,null,null,null,null,null,null,"PICANDET","FRANCOIS","PICANDET FRANCOIS","149401 S","CORMELLES",null,"PICANDET","FRANCOIS","PICANDET FRANCOIS","149401 S","CORMELLES"]
[null,null,null,null,null,null,null,null,null,null,"PICARD","VIOLAINE","PICARD VIOLAINE","160329 W","EVREUX",null,"PICARD","VIOLAINE","PICARD VIOLAINE","160329 W","EVREUX"]
[null,null,null,null,null,null,null,null,null,null,"PICARD","ANDRE","PICARD ANDRE","148806 W","LA SAUSSAYE",null,"PICARD","ANDRE","PICARD ANDRE","148806 W","LA SAUSSAYE"]
[null,null,null,null,null,null,null,null,null,null,"PICHOT","DOMINIQUE","PICHOT DOMINIQUE","135582 S","PACY",null,"PICHOT","DOMINIQUE","PICHOT DOMINIQUE","135582 S","PACY"]
[null,null,null,null,null,null,null,null,null,null,"PICOT","SYLVAIN","PICOT SYLVAIN","018412 E","ROUEN",null,"PICOT","SYLVAIN","PICOT SYLVAIN","018412 E","ROUEN"]
[null,null,null,null,null,null,null,null,null,null,"PIEDEFER","DIDIER","PIEDEFER DIDIER","139939 H","GAILLON",null,"PIEDEFER","DIDIER","PIEDEFER DIDIER","139939 H","GAILLON"]
[null,null,null,null,null,null,null,null,null,null,"PIERREL","BRUNO","PIERREL BRUNO","017817 H","SOTTEVILLE",null,"PIERREL","BRUNO","PIERREL BRUNO","017817 H","SOTTEVILLE"]
[null,null,null,null,null,null,null,null,null,null,"PIETRZYK","JEAN PIERRE","PIETRZYK JEAN PIERRE","155481 B","LOUVIERS",null,"PIETRZYK","JEAN PIERRE","PIETRZYK JEAN PIERRE","155481 B","LOUVIERS"]
[null,null,null,null,null,null,null,null,null,null,"PITOIS","FRANCIS","PITOIS FRANCIS","138573 T","ARGENCES",null,"PITOIS","FRANCIS","PITOIS FRANCIS","138573 T","ARGENCES"]
[null,null,null,null,null,null,null,null,null,null,"POIGNYE","PATRICK","POIGNYE PATRICK","142977 D","SOTTEVILLE",null,"POIGNYE","PATRICK","POIGNYE PATRICK","142977 D","SOTTEVILLE"]
[null,null,null,null,null,null,null,null,null,null,"POMMERET","JACQUES","POMMERET JACQUES","141741 P","FÉCAMP",null,"POMMERET","JACQUES","POMMERET JACQUES","141741 P","FÉCAMP"]
[null,null,null,null,null,null,null,null,null,null,"PONTHIEUX","CHRISTIAN","PONTHIEUX CHRISTIAN","017730 Y","ROUEN",null,"PONTHIEUX","CHRISTIAN","PONTHIEUX CHRISTIAN","017730 Y","ROUEN"]
[null,null,null,null,null,null,null,null,null,null,"POULET","MARC","POULET MARC","122687 T","LA SAUSSAYE",null,"POULET","MARC","POULET MARC","122687 T","LA SAUSSAYE"]
[null,null,null,null,null,null,null,null,null,null,"POULLAIN","PIERRE","POULLAIN PIERRE","017756 Y","ROUEN",null,"POULLAIN","PIERRE","POULLAIN PIERRE","017756 Y","ROUEN"]
[null,null,null,null,null,null,null,null,null,null,"PREVOST","PATRICE","PREVOST PATRICE","115463 X","FÉCAMP",null,"PREVOST","PATRICE","PREVOST PATRICE","115463 X","FÉCAMP"]
[null,null,null,null,null,null,null,null,null,null,"PREVOST","JEAN MARC","PREVOST JEAN MARC","152810 Y","GAILLON",null,"PREVOST","JEAN MARC","PREVOST JEAN MARC","152810 Y","GAILLON"]
[null,null,null,null,null,null,null,null,null,null,"PREVOST","ROGER","PREVOST ROGER","131485 D","Saint NICOLAS",null,"PREVOST","ROGER","PREVOST ROGER","131485 D","Saint NICOLAS"]
[null,null,null,null,null,null,null,null,null,null,"PRIEUR","SEBASTIEN","PRIEUR SEBASTIEN","118093 B","Saint MARCEL",null,"PRIEUR","SEBASTIEN","PRIEUR SEBASTIEN","118093 B","Saint MARCEL"]
[null,null,null,null,null,null,null,null,null,null,"PRIN","MICHAEL","PRIN MICHAEL","149403 V","CORMELLES",null,"PRIN","MICHAEL","PRIN MICHAEL","149403 V","CORMELLES"]
[null,null,null,null,null,null,null,null,null,null,"PRUVOST","MICHEL","PRUVOST MICHEL","137451 P","LISIEUX",null,"PRUVOST","MICHEL","PRUVOST MICHEL","137451 P","LISIEUX"]
[null,null,null,null,null,null,null,null,null,null,"QUEILLE","RICHARD","QUEILLE RICHARD","162896 L","SOTTEVILLE",null,"QUEILLE","RICHARD","QUEILLE RICHARD","162896 L","SOTTEVILLE"]
[null,null,null,null,null,null,null,null,null,null,"QUEREY","ANDRE","QUEREY ANDRE","101636 C","Saint MARCEL",null,"QUEREY","ANDRE","QUEREY ANDRE","101636 C","Saint MARCEL"]
[null,null,null,null,null,null,null,null,null,null,"QUERUEL","JACKIE","QUERUEL JACKIE","160692 Q","Saint MARCEL",null,"QUERUEL","JACKIE","QUERUEL JACKIE","160692 Q","Saint MARCEL"]
[null,null,null,null,null,null,null,null,null,null,"QUESNOT","LIONNEL","QUESNOT LIONNEL","140480 C","ROUEN",null,"QUESNOT","LIONNEL","QUESNOT LIONNEL","140480 C","ROUEN"]
[null,null,null,null,null,null,null,null,null,null,"QUEVA","MICHEL","QUEVA MICHEL","131882 K","CANY-BARVILLE",null,"QUEVA","MICHEL","QUEVA MICHEL","131882 K","CANY-BARVILLE"]
[null,null,null,null,null,null,null,null,null,null,"QUILLAUD","GERARD","QUILLAUD GERARD","159709 X","SOTTEVILLE",null,"QUILLAUD","GERARD","QUILLAUD GERARD","159709 X","SOTTEVILLE"]
[null,null,null,null,null,null,null,null,null,null,"QUILLAUD","PAULETTE","QUILLAUD PAULETTE","159713 B","SOTTEVILLE",null,"QUILLAUD","PAULETTE","QUILLAUD PAULETTE","159713 B","SOTTEVILLE"]
[null,null,null,null,null,null,null,null,null,null,"RACHET","ALAIN","RACHET ALAIN","017909 V","SOTTEVILLE",null,"RACHET","ALAIN","RACHET ALAIN","017909 V","SOTTEVILLE"]
[null,null,null,null,null,null,null,null,null,null,"RADIER","BERNARD","RADIER BERNARD","112043 J","LE HAVRE",null,"RADIER","BERNARD","RADIER BERNARD","112043 J","LE HAVRE"]
[null,null,null,null,null,null,null,null,null,null,"RAMDANI","IBRAHIM","RAMDANI IBRAHIM","154864 F","ROUEN",null,"RAMDANI","IBRAHIM","RAMDANI IBRAHIM","154864 F","ROUEN"]
[null,null,null,null,null,null,null,null,null,null,"RAULT","PASCAL","RAULT PASCAL","149903 N","LOUVIERS",null,"RAULT","PASCAL","RAULT PASCAL","149903 N","LOUVIERS"]
[null,null,null,null,null,null,null,null,null,null,"RAYMAKERS","GUILLAUME","RAYMAKERS GUILLAUME","163604 F","BERNAY",null,"RAYMAKERS","GUILLAUME","RAYMAKERS GUILLAUME","163604 F","BERNAY"]
[null,null,null,null,null,null,null,null,null,null,"REAUDIN","GERARD","REAUDIN GERARD","017727 V","CORMELLES",null,"REAUDIN","GERARD","REAUDIN GERARD","017727 V","CORMELLES"]
[null,null,null,null,null,null,null,null,null,null,"REICHSTADT","ERIC","REICHSTADT ERIC","163598 Z","BERNAY",null,"REICHSTADT","ERIC",{"$f":"CONCATENATE(Q387,\" \",R387)","v":"REICHSTADT ERIC"},"163598 Z","BERNAY"]
[null,null,null,null,null,null,null,null,null,null,"RENARD","NICOLAS","RENARD NICOLAS","152232 V","ROUEN",null,"RENARD","NICOLAS","RENARD NICOLAS","152232 V","ROUEN"]
[null,null,null,null,null,null,null,null,null,null,"RIBOULET","LAURENT","RIBOULET LAURENT","116625 P","CORMELLES",null,"RIBOULET","LAURENT","RIBOULET LAURENT","116625 P","CORMELLES"]
[null,null,null,null,null,null,null,null,null,null,"RIGOLET","GEORGES","RIGOLET GEORGES","141079 D","ARGENCES",null,"RIGOLET","GEORGES","RIGOLET GEORGES","141079 D","ARGENCES"]
[null,null,null,null,null,null,null,null,null,null,"RIMBOT","NICOLAS","RIMBOT NICOLAS","135749 D","ROUEN",null,"RIMBOT","NICOLAS","RIMBOT NICOLAS","135749 D","ROUEN"]
[null,null,null,null,null,null,null,null,null,null,"RIPOLL","JEAN YVES","RIPOLL JEAN YVES","118084 S","LA SAUSSAYE",null,"RIPOLL","JEAN YVES","RIPOLL JEAN YVES","118084 S","LA SAUSSAYE"]
[null,null,null,null,null,null,null,null,null,null,"RIVET","GILLES","RIVET GILLES","133432 A","OISSEL",null,"RIVET","GILLES","RIVET GILLES","133432 A","OISSEL"]
[null,null,null,null,null,null,null,null,null,null,"RIVIERE","CLAUDE","RIVIERE CLAUDE","159757 Z","Les ANDELYS",null,"RIVIERE","CLAUDE","RIVIERE CLAUDE","159757 Z","Les ANDELYS"]
[null,null,null,null,null,null,null,null,null,null,"RIVOAL","CYRILLE","RIVOAL CYRILLE","140476 Y","CORMELLES",null,"RIVOAL","CYRILLE","RIVOAL CYRILLE","140476 Y","CORMELLES"]
[null,null,null,null,null,null,null,null,null,null,"ROBERGE","BRUNO","ROBERGE BRUNO","017572 W","ROUEN",null,"ROBERGE","BRUNO","ROBERGE BRUNO","017572 W","ROUEN"]
[null,null,null,null,null,null,null,null,null,null,"ROBERT","PIERRE","ROBERT PIERRE","134861 Z","BERNAY",null,"ROBERT","PIERRE","ROBERT PIERRE","134861 Z","BERNAY"]
[null,null,null,null,null,null,null,null,null,null,"ROBIN","JACQUES",{"$f":"CONCATENATE(K398,\" \",L398)","v":"ROBIN JACQUES"},"124617 Z","SOTTEVILLE",null,"ROBIN","JACQUES","ROBIN JACQUES","124617 Z","SOTTEVILLE"]
[null,null,null,null,null,null,null,null,null,null,"ROCQUEMONT","CLAUDE","ROCQUEMONT CLAUDE","127142 C","LA SAUSSAYE",null,"ROCQUEMONT","CLAUDE","ROCQUEMONT CLAUDE","127142 C","LA SAUSSAYE"]
[null,null,null,null,null,null,null,null,null,null,"ROHART","THIERRY","ROHART THIERRY","148983 N","SOTTEVILLE",null,"ROHART","THIERRY","ROHART THIERRY","148983 N","SOTTEVILLE"]
[null,null,null,null,null,null,null,null,null,null,"ROLLAND","ALAIN","ROLLAND ALAIN","144165 V","LE HAVRE",null,"ROLLAND","ALAIN","ROLLAND ALAIN","144165 V","LE HAVRE"]
[null,null,null,null,null,null,null,null,null,null,"ROMELE","ROLAND","ROMELE ROLAND","162456 H","CORMELLES",null,"ROMELE","ROLAND","ROMELE ROLAND","162456 H","CORMELLES"]
[null,null,null,null,null,null,null,null,null,null,"RONDU","JACQUES","RONDU JACQUES","155024 E","LOUVIERS",null,"RONDU","JACQUES","RONDU JACQUES","155024 E","LOUVIERS"]
[null,null,null,null,null,null,null,null,null,null,"ROQUIGNY","REMY","ROQUIGNY REMY","127143 D","LA SAUSSAYE",null,"ROQUIGNY","REMY","ROQUIGNY REMY","127143 D","LA SAUSSAYE"]
[null,null,null,null,null,null,null,null,null,null,"ROUAS","GILLES","ROUAS GILLES","118073 H","LA SAUSSAYE",null,"ROUAS","GILLES","ROUAS GILLES","118073 H","LA SAUSSAYE"]
[null,null,null,null,null,null,null,null,null,null,"ROUGIER","JACQUES","ROUGIER JACQUES","162980 C","Saint MARCEL",null,"ROUGIER","JACQUES","ROUGIER JACQUES","162980 C","Saint MARCEL"]
[null,null,null,null,null,null,null,null,null,null,"ROUSSEL","JEAN YVES","ROUSSEL JEAN YVES","106828 U","EVREUX",null,"ROUSSEL","JEAN YVES","ROUSSEL JEAN YVES","106828 U","EVREUX"]
[null,null,null,null,null,null,null,null,null,null,"ROUSSET","JEAN PAUL","ROUSSET JEAN PAUL","153670 H","BERNAY",null,"ROUSSET","JEAN PAUL","ROUSSET JEAN PAUL","153670 H","BERNAY"]
[null,null,null,null,null,null,null,null,null,null,"ROUZAUD DANIS","JEAN MICHEL",{"$f":"CONCATENATE(K409,\" \",L409)","v":"ROUZAUD DANIS JEAN MICHEL"},"154534 X","Saint MARCEL",null,"ROUZAUD DANIS","JEAN MICHEL","ROUZAUD DANIS JEAN MICHEL","154534 X","Saint MARCEL"]
[null,null,null,null,null,null,null,null,null,null,"RUEDA","RENE","RUEDA RENE","017721 P","LE HAVRE",null,"RUEDA","RENE","RUEDA RENE","017721 P","LE HAVRE"]
[null,null,null,null,null,null,null,null,null,null,"SACLIER","JEAN LOUIS","SACLIER JEAN LOUIS","138227 L","ARGENCES",null,"SACLIER","JEAN LOUIS","SACLIER JEAN LOUIS","138227 L","ARGENCES"]
[null,null,null,null,null,null,null,null,null,null,"SAFFREY","JEAN PIERRE","SAFFREY JEAN PIERRE","137546 G","CORMELLES",null,"SAFFREY","JEAN PIERRE","SAFFREY JEAN PIERRE","137546 G","CORMELLES"]
[null,null,null,null,null,null,null,null,null,null,"SAMMUT","JEAN CLAUDE","SAMMUT JEAN CLAUDE","147880 P","FÉCAMP",null,"SAMMUT","JEAN CLAUDE","SAMMUT JEAN CLAUDE","147880 P","FÉCAMP"]
[null,null,null,null,null,null,null,null,null,null,"SAMSON","RONALD","SAMSON RONALD","017495 X","GAILLON",null,"SAMSON","RONALD","SAMSON RONALD","017495 X","GAILLON"]
[null,null,null,null,null,null,null,null,null,null,"SANDT","CHRISTIAN","SANDT CHRISTIAN","149174 W","SOTTEVILLE",null,"SANDT","CHRISTIAN","SANDT CHRISTIAN","149174 W","SOTTEVILLE"]
[null,null,null,null,null,null,null,null,null,null,"SANNIER","SERGE","SANNIER SERGE","017829 T","LA SAUSSAYE",null,"SANNIER","SERGE","SANNIER SERGE","017829 T","LA SAUSSAYE"]
[null,null,null,null,null,null,null,null,null,null,"SCHMITT","CLAUDE","SCHMITT CLAUDE","017478 G","LA SAUSSAYE",null,"SCHMITT","CLAUDE","SCHMITT CLAUDE","017478 G","LA SAUSSAYE"]
[null,null,null,null,null,null,null,null,null,null,"SCHWARTZ","ALAIN","SCHWARTZ ALAIN","149904 P","LOUVIERS",null,"SCHWARTZ","ALAIN","SCHWARTZ ALAIN","149904 P","LOUVIERS"]
[null,null,null,null,null,null,null,null,null,null,"SEPTAVAUX","LOUIS","SEPTAVAUX LOUIS","147307 R","ROUEN",null,"SEPTAVAUX","LOUIS","SEPTAVAUX LOUIS","147307 R","ROUEN"]
[null,null,null,null,null,null,null,null,null,null,"SIMOES","CORENTIN","SIMOES CORENTIN","162884 Y","OISSEL",null,"SIMOES","CORENTIN","SIMOES CORENTIN","162884 Y","OISSEL"]
[null,null,null,null,null,null,null,null,null,null,"SIROIT","JACQUES","SIROIT JACQUES","101657 X","EVREUX",null,"SIROIT","JACQUES","SIROIT JACQUES","101657 X","EVREUX"]
[null,null,null,null,null,null,null,null,null,null,"SKORUPKA","MAXIME","SKORUPKA MAXIME","162694 R","ROUEN",null,"SKORUPKA","MAXIME","SKORUPKA MAXIME","162694 R","ROUEN"]
[null,null,null,null,null,null,null,null,null,null,"SOLMON","HERVE","SOLMON HERVE","017626 Y","GAILLON",null,"SOLMON","HERVE","SOLMON HERVE","017626 Y","GAILLON"]
[null,null,null,null,null,null,null,null,null,null,"SORTAIS","CLAUDE","SORTAIS CLAUDE","017602 A","ROUEN",null,"SORTAIS","CLAUDE","SORTAIS CLAUDE","017602 A","ROUEN"]
[null,null,null,null,null,null,null,null,null,null,"TALBOT","THIERRY","TALBOT THIERRY","162521 D","CORMELLES",null,"TALBOT","THIERRY","TALBOT THIERRY","162521 D","CORMELLES"]
[null,null,null,null,null,null,null,null,null,null,"TALBOT","THOMAS","TALBOT THOMAS","162522 E","CORMELLES",null,"TALBOT","THOMAS","TALBOT THOMAS","162522 E","CORMELLES"]
[null,null,null,null,null,null,null,null,null,null,"TALBOT","MICHEL","TALBOT MICHEL","017544 U","ROUEN",null,"TALBOT","MICHEL","TALBOT MICHEL","017544 U","ROUEN"]
[null,null,null,null,null,null,null,null,null,null,"TELLIER","BRUNO","TELLIER BRUNO","143284 Y","GAILLON",null,"TELLIER","BRUNO","TELLIER BRUNO","143284 Y","GAILLON"]
[null,null,null,null,null,null,null,null,null,null,"TESSIER","JULIEN","TESSIER JULIEN","153468 N","LA SAUSSAYE",null,"TESSIER","JULIEN","TESSIER JULIEN","153468 N","LA SAUSSAYE"]
[null,null,null,null,null,null,null,null,null,null,"THIRY","ROBERT","THIRY ROBERT","017818 I","LISIEUX",null,"THIRY","ROBERT","THIRY ROBERT","017818 I","LISIEUX"]
[null,null,null,null,null,null,null,null,null,null,"THORY","MICHEL","THORY MICHEL","126230 A","LE HAVRE",null,"THORY","MICHEL","THORY MICHEL","126230 A","LE HAVRE"]
[null,null,null,null,null,null,null,null,null,null,"THUILLIER","JEAN CLAUDE","THUILLIER JEAN CLAUDE","017671 R","PACY",null,"THUILLIER","JEAN CLAUDE","THUILLIER JEAN CLAUDE","017671 R","PACY"]
[null,null,null,null,null,null,null,null,null,null,"TIRIAU","DIDIER","TIRIAU DIDIER","017739 H","BERNAY",null,"TIRIAU","DIDIER","TIRIAU DIDIER","017739 H","BERNAY"]
[null,null,null,null,null,null,null,null,null,null,"TOUTAIN","REMI","TOUTAIN REMI","159676 L","PACY",null,"TOUTAIN","REMI","TOUTAIN REMI","159676 L","PACY"]
[null,null,null,null,null,null,null,null,null,null,"TREHET","SERGE","TREHET SERGE","018140 S","GAILLON",null,"TREHET","SERGE","TREHET SERGE","018140 S","GAILLON"]
[null,null,null,null,null,null,null,null,null,null,"TROUSSIER","PIERRE","TROUSSIER PIERRE","017498 A","LISIEUX",null,"TROUSSIER","PIERRE","TROUSSIER PIERRE","017498 A","LISIEUX"]
[null,null,null,null,null,null,null,null,null,null,"TY","JOSHUA","TY JOSHUA","161122 H","LOUVIERS",null,"TY","JOSHUA","TY JOSHUA","161122 H","LOUVIERS"]
[null,null,null,null,null,null,null,null,null,null,"VARACHE","ALBAN","VARACHE ALBAN","100599 F","LE HAVRE",null,"VARACHE","ALBAN","VARACHE ALBAN","100599 F","LE HAVRE"]
[null,null,null,null,null,null,null,null,null,null,"VARACHE","SERGE","VARACHE SERGE","017650 W","LE HAVRE",null,"VARACHE","SERGE","VARACHE SERGE","017650 W","LE HAVRE"]
[null,null,null,null,null,null,null,null,null,null,"VARIGNON","DOMINIQUE","VARIGNON DOMINIQUE","131487 F","Saint NICOLAS",null,"VARIGNON","DOMINIQUE","VARIGNON DOMINIQUE","131487 F","Saint NICOLAS"]
[null,null,null,null,null,null,null,null,null,null,"VATRY","GILLES ROGER","VATRY GILLES ROGER","149375 P","Saint MARCEL",null,"VATRY","GILLES ROGER","VATRY GILLES ROGER","149375 P","Saint MARCEL"]
[null,null,null,null,null,null,null,null,null,null,"VAUCHEL","ANDRE","VAUCHEL ANDRE","144166 W","LE HAVRE",null,"VAUCHEL","ANDRE","VAUCHEL ANDRE","144166 W","LE HAVRE"]
[null,null,null,null,null,null,null,null,null,null,"VAUTIER","ELIAN","VAUTIER ELIAN","146121 B","ARGENCES",null,"VAUTIER","ELIAN","VAUTIER ELIAN","146121 B","ARGENCES"]
[null,null,null,null,null,null,null,null,null,null,"VERDREL","DIDIER","VERDREL DIDIER","139912 G","Saint NICOLAS",null,"VERDREL","DIDIER","VERDREL DIDIER","139912 G","Saint NICOLAS"," "]
[null,null,null,null,null,null,null,null,null,null,"VEREL","SEBASTIEN","VEREL SEBASTIEN","141213 H","OISSEL",null,"VEREL","SEBASTIEN","VEREL SEBASTIEN","141213 H","OISSEL"," "]
[null,null,null,null,null,null,null,null,null,null,"VERON","PHILIPPE","VERON PHILIPPE","134687 H","EVREUX",null,"VERON","PHILIPPE","VERON PHILIPPE","134687 H","EVREUX"," "]
[null,null,null,null,null,null,null,null,null,null,"VICTORIA","VINCENT","VICTORIA VINCENT","100615 V","ARGENCES",null,"VICTORIA","VINCENT","VICTORIA VINCENT","100615 V","ARGENCES"," "]
[null,null,null,null,null,null,null,null,null,null,"VIGNE","PIERRE","VIGNE PIERRE","018005 N","GAILLON",null,"VIGNE","PIERRE","VIGNE PIERRE","018005 N","GAILLON"," "]
[null,null,null,null,null,null,null,null,null,null,"VOYER","MICHEL","VOYER MICHEL","017856 U","Les ANDELYS",null,"VOYER","MICHEL","VOYER MICHEL","017856 U","Les ANDELYS"," "]
[null,null,null,null,null,null,null,null,null,null,"WATRIQUANT","PHILIPPE","WATRIQUANT PHILIPPE","149872 E","Saint MARCEL",null,"WATRIQUANT","PHILIPPE","WATRIQUANT PHILIPPE","149872 E","Saint MARCEL"," "]
[null,null,null,null,null,null,null,null,null,null,"WEIPPERT","MARC","WEIPPERT MARC","148239 E","Saint MARCEL",null,"WEIPPERT","MARC",{"$f":"CONCATENATE(Q451,\" \",R451)","v":"WEIPPERT MARC"},"148239 E","Saint MARCEL"," "]
[null,null,null,null,null,null,null,null,null,null,"WILLEMS","MICHEL","WILLEMS MICHEL","100616 W","CANY-BARVILLE",null,"WILLEMS","MICHEL","WILLEMS MICHEL","100616 W","CANY-BARVILLE"," "]
[null,null,null,null,null,null,null,null,null,null,"WILLEMYNS","JACK","WILLEMYNS JACK","126237 H","PACY",null,"WILLEMYNS","JACK","WILLEMYNS JACK","126237 H","PACY"," "]
[null,null,null,null,null,null,null,null,null,null,"ZIMMERLIN","DANIEL","ZIMMERLIN DANIEL","017923 J","SOTTEVILLE",null,"ZIMMERLIN","DANIEL","ZIMMERLIN DANIEL","017923 J","SOTTEVILLE"," "]
[null,null,null,null,null,null,null,null,null,null,null,null," ",null,null,null,null,null,null,null,null," "]
[null,null,null,null,null,null,null,null,null,null,null,null," ",null,null,null,null,null,null,null,null," "]
[null,null,null,null,null,null,null,null,null,null,null,null," "]
[null,null,null,null,null,null,null,null,null,null,null,null," ",null,null,null,null,null,null,null,null," "]
[null,null,null,null,null,null,null,null,null,null,null,null,null,null,null,null,null,null,null,null,null," "]
[null,null,null,null,null,null,null,null,null,null,null,null,null,null,null,null,null,null,null,null,null," "]
[null,null,null,null,null,null,null,null,null,null,null,null,null,null,null,null,null,null,null,null,null," "]
[null,null,null,null,null,null,null,null,null,null,null,null,null,null,null,null,null,null,null,null,null," "]
[null,null,null,null,null,null,null,null,null,null,null,null,null,null,null,null,null,null,null,null,null," "]
[null,null,null,null,null,null,null,null,null,null,null,null,null,null,null,null,null,null,null,null,null," "]
[null,null,null,null,null,null,null,null,null,null,null,null,null,null,null,null,null,null,null,null,null," "]
[null,null,null,null,null,null,null,null,null,null,null,null,null,null,null,null,null,null,null,null,null," "]
[null,null,null,null,null,null,null,null,null,null,null,null,null,null,null,null,null,null,null,null,null," "]
[null,null,null,null,null,null,null,null,null,null,null,null,null,null,null,null,null,null,null,null,null," "]
[null,null,null,null,null,null,null,null,null,null,null,null,null,null,null,null,null,null,null,null,null," "]